Workbook

Sheet OVERALL STATS
A1: OVERALL TITLE COMPANY MARKET STATISTICS (Washoe County, NV)
A2: Reporting Period: APRIL, 2020
A5: OVERALL SALES MARKET (Resales & Subdivision Sales)
A6: TITLE COMPANY | B6: CLOSINGS | C6: DOLLAR VOLUME | D6: CLOSINGS | E6: DOLLAR VOLUME | F6: CLOSINGS | G6: DOLLAR VOLUME
A7: First Centennial Title | B7: 245 | C7: 114723235.9 | D7: =B7/$B$19 -> 0.3370013755 | E7: =C7/$C$19 -> 0.3378025098 | F7: 1 | G7: 1
A8: Western Title | B8: 148 | C8: 57768594 | D8: 0.2035763411 | E8: 0.1700995956 | F8: 2 | G8: 2
A9: Ticor Title | B9: 111 | C9: 51861661 | D9: =B9/$B$19 -> 0.1526822558 | E9: =C9/$C$19 -> 0.1527066344 | F9: 3 | G9: 3
A10: Westminster Title - Las Vegas | B10: 55 | C10: 40349875 | D10: 0.07565337001 | E10: 0.1188101864 | F10: 4 | G10: 4
A11: First American Title | B11: 47 | C11: 27791881.47 | D11: 0.06464924347 | E11: 0.08183318083 | F11: 5 | G11: 5
A12: Calatlantic Title West | B12: 36 | C12: 16160675 | D12: 0.04951856946 | E12: 0.04758509931 | F12: 6 | G12: 6
A13: Stewart Title | B13: 27 | C13: 10366800 | D13: 0.0371389271 | E13: 0.03052503732 | F13: 7 | G13: 7
A14: North American Title | B14: 25 | C14: 9028490 | D14: 0.03438789546 | E14: 0.02658438421 | F14: 8 | G14: 8
A15: Toiyabe Title | B15: 17 | C15: 4661200 | D15: 0.02338376891 | E15: 0.01372490103 | F15: 9 | G15: 9
A16: Signature Title Company | B16: 7 | C16: 3704900 | D16: =B16/$B$19 -> 0.009628610729 | E16: =C16/$C$19 -> 0.01090907616 | F16: 10 | G16: 10
A17: Acme Title and Escrow | B17: 5 | C17: 1524000 | D17: 0.006877579092 | E17: 0.004487417224 | F17: 11 | G17: 12
A18: DHI Title of Nevada | B18: 4 | C18: 1674980 | D18: =B18/$B$19 -> 0.005502063274 | E18: =C18/$C$19 -> 0.004931977757 | F18: 12 | G18: 11
A19: GRAND TOTAL | B19: =SUM(B7:B18) -> 727 | C19: =SUM(C7:C18) -> 339616292.4 | D19: =SUM(D7:D18) -> 1 | E19: =SUM(E7:E18) -> 1
A21: OVERALL LOAN ONLY MARKET (Refi's, Construction, Commercial, Credit Lines, Homequity, etc.)
D22: % OF | E22: % OF | F22: RANK BY | G22: RANK BY
A23: TITLECOMPANY | B23: CLOSINGS | C23: DOLLAR VOLUME | D23: CLOSINGS | E23: DOLLAR VOLUME | F23: CLOSINGS | G23: DOLLAR VOLUME
A24: First Centennial Title | B24: 346 | C24: 121463842.5 | D24: =B24/$B$33 -> 0.2880932556 | E24: =C24/$C$33 -> 0.2729723027 | F24: 1 | G24: 1
A25: Western Title | B25: 241 | C25: 70798090 | D25: 0.2006661116 | E25: 0.1591084002 | F25: 2 | G25: 3
A26: First American Title | B26: 177 | C26: 110429355 | D26: 0.1473771857 | E26: 0.2481738985 | F26: 3 | G26: 2
A27: Ticor Title | B27: 169 | C27: 64510471.75 | D27: 0.1407160699 | E27: 0.1449778935 | F27: 4 | G27: 4
A28: Stewart Title | B28: 130 | C28: 37770653 | D28: 0.1082431307 | E28: 0.08488404379 | F28: 5 | G28: 5
A29: North American Title | B29: 57 | C29: 16352388 | D29: 0.04746044963 | E29: 0.03674961137 | F29: 6 | G29: 6
A30: Acme Title and Escrow | B30: 52 | C30: 14381536 | D30: =B30/$B$33 -> 0.04329725229 | E30: =C30/$C$33 -> 0.03232040843 | F30: 7 | G30: 7
A31: Toiyabe Title | B31: 17 | C31: 5377941 | D31: =B31/$B$33 -> 0.01415487094 | E31: =C31/$C$33 -> 0.01208613945 | F31: 8 | G31: 8
A32: Signature Title Company | B32: 12 | C32: 3883367 | D32: =B32/$B$33 -> 0.009991673605 | E32: =C32/$C$33 -> 0.008727301974 | F32: 9 | G32: 9
A33: GRAND TOTAL | B33: =SUM(B24:B32) -> 1201 | C33: =SUM(C24:C32) -> 444967644.2 | D33: =SUM(D24:D32) -> 1 | E33: =SUM(E24:E32) -> 1
A35: OVERALL SALES AND LOAN ONLY MARKETS COMBINED
D36: % OF | E36: % OF | F36: RANK BY | G36: RANK BY
A37: TITLECOMPANY | B37: CLOSINGS | C37: DOLLAR VOLUME | D37: CLOSINGS | E37: DOLLAR VOLUME | F37: CLOSINGS | G37: DOLLAR VOLUME
A38: First Centennial Title | B38: 592 | C38: 236634078.4 | D38: =B38/$B$50 -> 0.3068947641 | E38: =C38/$C$50 -> 0.3014328065 | F38: 1 | G38: 1
A39: Western Title | B39: 389 | C39: 128566684 | D39: 0.2016588906 | E39: 0.163772761 | F39: 2 | G39: 3
A40: Ticor Title | B40: 280 | C40: 116372132.8 | D40: 0.145152929 | E40: 0.148238913 | F40: 3 | G40: 4
A41: First American Title | B41: 224 | C41: 138221236.5 | D41: =B41/$B$50 -> 0.1161223432 | E41: =C41/$C$50 -> 0.1760710693 | F41: 4 | G41: 2
A42: Stewart Title | B42: 157 | C42: 48137453 | D42: 0.08138932089 | E42: 0.0613191796 | F42: 5 | G42: 5
A43: North American Title | B43: 82 | C43: 25380878 | D43: 0.04250907206 | E43: 0.0323310545 | F43: 6 | G43: 7
A44: Acme Title and Escrow | B44: 57 | C44: 15905536 | D44: 0.02954898911 | E44: 0.02026103082 | F44: 7 | G44: 9
A45: Westminster Title - Las Vegas | B45: 55 | C45: 40349875 | D45: 0.02851218248 | E45: 0.05139908902 | F45: 8 | G45: 6
A46: Calatlantic Title West | B46: 36 | C46: 16160675 | D46: =B46/$B$50 -> 0.01866251944 | E46: =C46/$C$50 -> 0.02058603584 | F46: 9 | G46: 8
A47: Toiyabe Title | B47: 34 | C47: 10039141 | D47: =B47/$B$50 -> 0.0176257128 | E47: =C47/$C$50 -> 0.01278821067 | F47: 10 | G47: 10
A48: Signature Title Company | B48: 19 | C48: 7588267 | D48: =B48/$B$50 -> 0.009849663038 | E48: 0.009666201223 | F48: 11 | G48: 11
A49: DHI Title of Nevada | B49: 4 | C49: 1674980 | D49: =B49/$B$50 -> 0.002073613271 | E49: =C49/$C$50 -> 0.002133648398 | F49: 12 | G49: 12
A50: GRAND TOTAL | B50: =SUM(B38:B49) -> 1929 | C50: =SUM(C38:C49) -> 785030936.7 | D50: =SUM(D38:D49) -> 1 | E50: =SUM(E38:E49) -> 1
A52: Information provided by Datasource | D52: SEE CHARTS BELOW:
A53: www.datasourcenev.com

Sheet SALES STATS
A1: SALES MARKET (Washoe County, NV)
A2: ='OVERALL STATS'!A2 -> Reporting Period: APRIL, 2020
A4: RESALE MARKET (Includes ALL types of real property)
D5: % OF | E5: % OF | F5: RANK BY | G5: RANK BY
A6: TITLE COMPANY | B6: CLOSINGS | C6: DOLLAR VOLUME | D6: CLOSINGS | E6: DOLLAR VOLUME | F6: CLOSINGS | G6: DOLLAR VOLUME
A7: First Centennial Title | B7: 234 | C7: 109112181.9 | D7: =B7/$B$16 -> 0.4178571429 | E7: =C7/$C$16 -> 0.442017171 | F7: 1 | G7: 1
A8: Western Title | B8: 115 | C8: 44896875 | D8: =B8/$B$16 -> 0.2053571429 | E8: =C8/$C$16 -> 0.1818787721 | F8: 2 | G8: 2
A9: Ticor Title | B9: 92 | C9: 40707055 | D9: =B9/$B$16 -> 0.1642857143 | E9: =C9/$C$16 -> 0.1649056684 | F9: 3 | G9: 3
A10: First American Title | B10: 38 | C10: 22849048.47 | D10: =B10/$B$16 -> 0.06785714286 | E10: =C10/$C$16 -> 0.09256227475 | F10: 4 | G10: 4
A11: Stewart Title | B11: 27 | C11: 10366800 | D11: =B11/$B$16 -> 0.04821428571 | E11: =C11/$C$16 -> 0.04199626042 | F11: 5 | G11: 5
A12: North American Title | B12: 25 | C12: 9028490 | D12: =B12/$B$16 -> 0.04464285714 | E12: =C12/$C$16 -> 0.03657472096 | F12: 6 | G12: 6
A13: Toiyabe Title | B13: 17 | C13: 4661200 | D13: =B13/$B$16 -> 0.03035714286 | E13: =C13/$C$16 -> 0.0188826802 | F13: 7 | G13: 7
A14: Signature Title Company | B14: 7 | C14: 3704900 | D14: =B14/$B$16 -> 0.0125 | E14: =C14/$C$16 -> 0.01500867628 | F14: 8 | G14: 8
A15: Acme Title and Escrow | B15: 5 | C15: 1524000 | D15: =B15/$B$16 -> 0.008928571429 | E15: =C15/$C$16 -> 0.006173775985 | F15: 9 | G15: 9
A16: GRAND TOTAL | B16: =SUM(B7:B15) -> 560 | C16: =SUM(C7:C15) -> 246850550.4 | D16: =SUM(D7:D15) -> 1 | E16: =SUM(E7:E15) -> 1
A18: SUBDIVISION SALES (Builder/Developer Sales)
D19: % OF | E19: % OF | F19: RANK BY | G19: RANK BY
A20: TITLE COMPANY | B20: CLOSINGS | C20: DOLLAR VOLUME | D20: CLOSINGS | E20: DOLLAR VOLUME | F20: CLOSINGS | G20: DOLLAR VOLUME
A21: Westminster Title - Las Vegas | B21: 55 | C21: 40349875 | D21: =B21/$B$28 -> 0.3293413174 | E21: =C21/$C$28 -> 0.4349652591 | F21: 1 | G21: 1
A22: Calatlantic Title West | B22: 36 | C22: 16160675 | D22: =B22/$B$28 -> 0.2155688623 | E22: =C22/$C$28 -> 0.1742095158 | F22: 2 | G22: 2
A23: Western Title | B23: 33 | C23: 12871719 | D23: =B23/$B$28 -> 0.1976047904 | E23: =C23/$C$28 -> 0.1387550913 | F23: 3 | G23: 3
A24: Ticor Title | B24: 19 | C24: 11154606 | D24: =B24/$B$28 -> 0.1137724551 | E24: =C24/$C$28 -> 0.1202448852 | F24: 4 | G24: 4
A25: First Centennial Title | B25: 11 | C25: 5611054 | D25: =B25/$B$28 -> 0.06586826347 | E25: =C25/$C$28 -> 0.06048627305 | F25: 5 | G25: 5
A26: First American Title | B26: 9 | C26: 4942833 | D26: =B26/$B$28 -> 0.05389221557 | E26: =C26/$C$28 -> 0.05328295655 | F26: 6 | G26: 6
A27: DHI Title of Nevada | B27: 4 | C27: 1674980 | D27: =B27/$B$28 -> 0.02395209581 | E27: =C27/$C$28 -> 0.018056019 | F27: 7 | G27: 7
A28: GRAND TOTAL | B28: =SUM(B21:B27) -> 167 | C28: =SUM(C21:C27) -> 92765742 | D28: =SUM(D21:D27) -> 1 | E28: =SUM(E21:E27) -> 1
A30: RESIDENTIAL RESALE MARKET (Residential Properties Only)
D31: % OF | E31: % OF | F31: RANK BY | G31: RANK BY
A32: TITLE COMPANY | B32: CLOSINGS | C32: DOLLAR VOLUME | D32: CLOSINGS | E32: DOLLAR VOLUME | F32: CLOSINGS | G32: DOLLAR VOLUME
A33: First Centennial Title | B33: 220 | C33: 101342181.9 | D33: =B33/$B$42 -> 0.4198473282 | E33: =C33/$C$42 -> 0.4487638234 | F33: 1 | G33: 1
A34: Western Title | B34: 107 | C34: 42956787 | D34: 0.2041984733 | E34: 0.1902214024 | F34: 2 | G34: 2
A35: Ticor Title | B35: 89 | C35: 40168155 | D35: 0.1698473282 | E35: 0.1778727719 | F35: 3 | G35: 3
A36: First American Title | B36: 32 | C36: 12684690 | D36: 0.06106870229 | E36: 0.05617039099 | F36: 4 | G36: 4
A37: Stewart Title | B37: 25 | C37: 10054800 | D37: 0.04770992366 | E37: 0.0445247024 | F37: 5 | G37: 5
A38: North American Title | B38: 23 | C38: 8773490 | D38: 0.04389312977 | E38: 0.03885080074 | F38: 6 | G38: 6
A39: Toiyabe Title | B39: 16 | C39: 4616200 | D39: =B39/$B$42 -> 0.03053435115 | E39: =C39/$C$42 -> 0.02044147385 | F39: 7 | G39: 7
A40: Signature Title Company | B40: 7 | C40: 3704900 | D40: 0.01335877863 | E40: 0.01640605183 | F40: 8 | G40: 8
A41: Acme Title and Escrow | B41: 5 | C41: 1524000 | D41: 0.009541984733 | E41: 0.006748582414 | F41: 9 | G41: 9
A42: GRAND TOTAL | B42: =SUM(B33:B41) -> 524 | C42: =SUM(C33:C41) -> 225825203.9 | D42: =SUM(D33:D41) -> 1 | E42: =SUM(E33:E41) -> 1
A44: COMMERCIAL/INDUSTRIAL, APARTMENTS, MOBILE HOME PARKS SALES MARKET
D45: % OF | E45: % OF | F45: RANK BY | G45: RANK BY
A46: TITLE COMPANY | B46: CLOSINGS | C46: DOLLAR VOLUME | D46: CLOSINGS | E46: DOLLAR VOLUME | F46: CLOSINGS | G46: DOLLAR VOLUME
A47: First Centennial Title | B47: 5 | C47: 5458000 | D47: =B47/$B$50 -> 0.625 | E47: =C47/$C$50 -> 0.4957552222 | F47: 1 | G47: 1
A48: First American Title | B48: 2 | C48: 4706465.47 | D48: =B48/$B$50 -> 0.25 | E48: =C48/$C$50 -> 0.427492641 | F48: 2 | G48: 2
A49: Western Title | B49: 1 | C49: 845000 | D49: =B49/$B$50 -> 0.125 | E49: =C49/$C$50 -> 0.07675213681 | F49: 3 | G49: 3
A50: GRAND TOTAL | B50: =SUM(B47:B49) -> 8 | C50: =SUM(C47:C49) -> 11009465.47 | D50: =SUM(D47:D49) -> 1 | E50: =SUM(E47:E49) -> 1
A52: VACANT LAND SALES
D53: % OF | E53: % OF | F53: RANK BY | G53: RANK BY
A54: TITLE COMPANY | B54: CLOSINGS | C54: DOLLAR VOLUME | D54: CLOSINGS | E54: DOLLAR VOLUME | F54: CLOSINGS | G54: DOLLAR VOLUME
A55: First Centennial Title | B55: 9 | C55: 2312000 | D55: =B55/$B$62 -> 0.3214285714 | E55: =C55/$C$62 -> 0.2308334135 | F55: 1 | G55: 2
A56: Western Title | B56: 7 | C56: 1095088 | D56: =B56/$B$62 -> 0.25 | E56: =C56/$C$62 -> 0.1093351648 | F56: 2 | G56: 3
A57: First American Title | B57: 4 | C57: 5457893 | D57: =B57/$B$62 -> 0.1428571429 | E57: =C57/$C$62 -> 0.5449239063 | F57: 3 | G57: 1
A58: Ticor Title | B58: 3 | C58: 538900 | D58: =B58/$B$62 -> 0.1071428571 | E58: =C58/$C$62 -> 0.05380455299 | F58: 4 | G58: 4
A59: Stewart Title | B59: 2 | C59: 312000 | D59: =B59/$B$62 -> 0.07142857143 | E59: =C59/$C$62 -> 0.03115052984 | F59: 5 | G59: 5
A60: North American Title | B60: 2 | C60: 255000 | D60: =B60/$B$62 -> 0.07142857143 | E60: =C60/$C$62 -> 0.02545956766 | F60: 5 | G60: 6
A61: Toiyabe Title | B61: 1 | C61: 45000 | D61: =B61/$B$62 -> 0.03571428571 | E61: =C61/$C$62 -> 0.004492864881 | F61: 6 | G61: 7
A62: GRAND TOTAL | B62: =SUM(B55:B61) -> 28 | C62: =SUM(C55:C61) -> 10015881 | D62: =SUM(D55:D61) -> 1 | E62: =SUM(E55:E61) -> 1
A64: INCLINE VILLAGE SALES MARKET
D65: % OF | E65: % OF | F65: RANK BY | G65: RANK BY
A66: TITLE COMPANY | B66: CLOSINGS | C66: DOLLAR VOLUME | D66: CLOSINGS | E66: DOLLAR VOLUME | F66: CLOSINGS | G66: DOLLAR VOLUME
A67: First Centennial Title | B67: 5 | C67: 4769000 | D67: =B67/$B$70 -> 0.4166666667 | E67: =C67/$C$70 -> 0.4496155311 | F67: 1 | G67: 1
A68: First American Title | B68: 4 | C68: 3372840 | D68: =B68/$B$70 -> 0.3333333333 | E68: =C68/$C$70 -> 0.3179872611 | F68: 2 | G68: 2
A69: Ticor Title | B69: 3 | C69: 2465000 | D69: =B69/$B$70 -> 0.25 | E69: =C69/$C$70 -> 0.2323972078 | F69: 3 | G69: 3
A70: GRAND TOTAL | B70: =SUM(B67:B69) -> 12 | C70: =SUM(C67:C69) -> 10606840 | D70: =SUM(D67:D69) -> 1 | E70: =SUM(E67:E69) -> 1
A72: RESIDENTIAL RESALE MARKET (Excluding Incline Village)
D73: % OF | E73: % OF | F73: RANK BY | G73: RANK BY
A74: TITLE COMPANY | B74: CLOSINGS | C74: DOLLAR VOLUME | D74: CLOSINGS | E74: DOLLAR VOLUME | F74: CLOSINGS | G74: DOLLAR VOLUME
A75: First Centennial Title | B75: 215 | C75: 96573181.94 | D75: =B75/$B$84 -> 0.419921875 | E75: =C75/$C$84 -> 0.4487218478 | F75: 1 | G75: 1
A76: Western Title | B76: 107 | C76: 42956787 | D76: =B76/$B$84 -> 0.208984375 | E76: =C76/$C$84 -> 0.1995962901 | F76: 2 | G76: 2
A77: Ticor Title | B77: 86 | C77: 37703155 | D77: =B77/$B$84 -> 0.16796875 | E77: =C77/$C$84 -> 0.175185585 | F77: 3 | G77: 3
A78: First American Title | B78: 28 | C78: 9311850 | D78: =B78/$B$84 -> 0.0546875 | E78: =C78/$C$84 -> 0.04326698628 | F78: 4 | G78: 5
A79: Stewart Title | B79: 25 | C79: 10054800 | D79: =B79/$B$84 -> 0.048828125 | E79: =C79/$C$84 -> 0.04671906159 | F79: 5 | G79: 4
A80: North American Title | B80: 23 | C80: 8773490 | D80: =B80/$B$84 -> 0.044921875 | E80: =C80/$C$84 -> 0.04076552688 | F80: 6 | G80: 6
A81: Toiyabe Title | B81: 16 | C81: 4616200 | D81: =B81/$B$84 -> 0.03125 | E81: =C81/$C$84 -> 0.02144891317 | F81: 7 | G81: 7
A82: Signature Title Company | B82: 7 | C82: 3704900 | D82: =B82/$B$84 -> 0.013671875 | E82: =C82/$C$84 -> 0.01721460907 | F82: 8 | G82: 8
A83: Acme Title and Escrow | B83: 5 | C83: 1524000 | D83: =B83/$B$84 -> 0.009765625 | E83: =C83/$C$84 -> 0.007081180119 | F83: 9 | G83: 9
A84: GRAND TOTAL | B84: =SUM(B75:B83) -> 512 | C84: =SUM(C75:C83) -> 215218363.9 | D84: =SUM(D75:D83) -> 1 | E84: =SUM(E75:E83) -> 1
A86: Information provided by Datasource
A87: www.datasourcenev.com

Sheet LOAN ONLY STATS
A1: LOAN ONLY MARKETS (Washoe County, NV)
A2: ='OVERALL STATS'!A2 -> Reporting Period: APRIL, 2020
A4: CONVENTIONAL LOANS MARKET (Refi's)
D5: % OF | E5: % OF | F5: RANK BY | G5: RANK BY
A6: TITLECOMPANY | B6: CLOSINGS | C6: DOLLAR VOLUME | D6: CLOSINGS | E6: DOLLAR VOLUME | F6: CLOSINGS | G6: DOLLAR VOLUME
A7: First Centennial Title | B7: 320 | C7: 105494392.5 | D7: =B7/$B$16 -> 0.2775368604 | E7: =C7/$C$16 -> 0.3015467355 | F7: 1 | G7: 1
A8: Western Title | B8: 234 | C8: 68538590 | D8: =B8/$B$16 -> 0.2029488291 | E8: =C8/$C$16 -> 0.1959117218 | F8: 2 | G8: 2
A9: First American Title | B9: 169 | C9: 51861914 | D9: =B9/$B$16 -> 0.1465741544 | E9: =C9/$C$16 -> 0.1482428638 | F9: 3 | G9: 3
A10: Ticor Title | B10: 165 | C10: 46387471.75 | D10: 0.1431049436 | E10: 0.132594637 | F10: 4 | G10: 4
A11: Stewart Title | B11: 128 | C11: 37640653 | D11: 0.1110147441 | E11: 0.1075926006 | F11: 5 | G11: 5
A12: North American Title | B12: 57 | C12: 16352388 | D12: 0.04943625325 | E12: 0.04674190829 | F12: 6 | G12: 6
A13: No Conventional loans this month. | B13: 51 | C13: 14307536 | D13: 0.04423243712 | E13: 0.04089687301 | F13: 7 | G13: 7
A14: Toiyabe Title | B14: 17 | C14: 5377941 | D14: =B14/$B$16 -> 0.01474414571 | E14: =C14/$C$16 -> 0.01537238628 | F14: 8 | G14: 8
A15: Signature Title Company | B15: 12 | C15: 3883367 | D15: =B15/$B$16 -> 0.01040763226 | E15: =C15/$C$16 -> 0.0111002738 | F15: 9 | G15: 9
A16: GRAND TOTAL | B16: =SUM(B7:B15) -> 1153 | C16: =SUM(C7:C15) -> 349844253.2 | D16: =SUM(D7:D15) -> 1 | E16: =SUM(E7:E15) -> 1
A18: COMMERCIAL LOANS MARKET
D19: % OF | E19: % OF | F19: RANK BY | G19: RANK BY
A20: TITLECOMPANY | B20: CLOSINGS | C20: DOLLAR VOLUME | D20: CLOSINGS | E20: DOLLAR VOLUME | F20: CLOSINGS | G20: DOLLAR VOLUME
A21: First Centennial Title | B21: 7 | C21: 5827950 | D21: =B21/$B$25 -> 0.6363636364 | E21: =C21/$C$25 -> 0.07660459245 | F21: 1 | G21: 3
A22: First American Title | B22: 2 | C22: 51914387 | D22: =B22/$B$25 -> 0.1818181818 | E22: =C22/$C$25 -> 0.6823806756 | F22: 2 | G22: 1
A23: Ticor Title | B23: 1 | C23: 17669000 | D23: =B23/$B$25 -> 0.09090909091 | E23: =C23/$C$25 -> 0.232247453 | F23: 3 | G23: 2
A24: Western Title | B24: 1 | C24: 667000 | D24: =B24/$B$25 -> 0.09090909091 | E24: =C24/$C$25 -> 0.008767278917 | F24: 3 | G24: 4
A25: GRAND TOTAL | B25: =SUM(B21:B24) -> 11 | C25: =SUM(C21:C24) -> 76078337 | D25: =SUM(D21:D24) -> 1 | E25: =SUM(E21:E24) -> 1
A27: HOME EQUITY & CREDIT LINE LOANS MARKET
D28: % OF | E28: % OF | F28: RANK BY | G28: RANK BY
A29: TITLECOMPANY | B29: CLOSINGS | C29: DOLLAR VOLUME | D29: CLOSINGS | E29: DOLLAR VOLUME | F29: CLOSINGS | G29: DOLLAR VOLUME
A30: First Centennial Title | B30: 7 | C30: 1529000 | D30: =B30/$B$35 -> 0.4666666667 | E30: =C30/$C$35 -> 0.6762494471 | F30: 1 | G30: 1
A31: First American Title | B31: 3 | C31: 142000 | D31: =B31/$B$35 -> 0.2 | E31: =C31/$C$35 -> 0.062804069 | F31: 2 | G31: 3
A32: Western Title | B32: 2 | C32: 360000 | D32: =B32/$B$35 -> 0.1333333333 | E32: =C32/$C$35 -> 0.1592215834 | F32: 3 | G32: 2
A33: Stewart Title | B33: 2 | C33: 130000 | D33: =B33/$B$35 -> 0.1333333333 | E33: =C33/$C$35 -> 0.05749668288 | F33: 3 | G33: 4
A34: Ticor Title | B34: 1 | C34: 100000 | D34: =B34/$B$35 -> 0.06666666667 | E34: =C34/$C$35 -> 0.0442282176 | F34: 4 | G34: 5
A35: GRAND TOTAL | B35: =SUM(B30:B34) -> 15 | C35: =SUM(C30:C34) -> 2261000 | D35: =SUM(D30:D34) -> 1 | E35: =SUM(E30:E34) -> 1
A37: CONSTRUCTION LOANS MARKET
D38: % OF | E38: % OF | F38: RANK BY | G38: RANK BY
A39: TITLECOMPANY | B39: CLOSINGS | C39: DOLLAR VOLUME | D39: CLOSINGS | E39: DOLLAR VOLUME | F39: CLOSINGS | G39: DOLLAR VOLUME
A40: First Centennial Title | B40: 6 | C40: 8199500 | D40: =B40/$B$42 -> 0.8571428571 | E40: =C40/$C$42 -> 0.6631485301 | F40: 1 | G40: 1
A41: First American Title | B41: 1 | C41: 4165000 | D41: =B41/$B$42 -> 0.1428571429 | E41: =C41/$C$42 -> 0.3368514699 | F41: 2 | G41: 2
A42: GRAND TOTAL | B42: =SUM(B40:B41) -> 7 | C42: =SUM(C40:C41) -> 12364500 | D42: =SUM(D40:D41) -> 1 | E42: =SUM(E40:E41) -> 1
A44: HARD MONEY LOANS MARKET
D45: % OF | E45: % OF | F45: RANK BY | G45: RANK BY
A46: TITLECOMPANY | B46: CLOSINGS | C46: DOLLAR VOLUME | D46: CLOSINGS | E46: DOLLAR VOLUME | F46: CLOSINGS | G46: DOLLAR VOLUME
A47: First Centennial Title | B47: 6 | C47: 413000 | D47: =B47/$B$52 -> 0.4285714286 | E47: =C47/$C$52 -> 0.1013870136 | F47: 1 | G47: 3
A48: Western Title | B48: 4 | C48: 1232500 | D48: =B48/$B$52 -> 0.2857142857 | E48: =C48/$C$52 -> 0.3025653615 | F48: 2 | G48: 2
A49: Ticor Title | B49: 2 | C49: 354000 | D49: =B49/$B$52 -> 0.1428571429 | E49: =C49/$C$52 -> 0.08690315454 | F49: 3 | G49: 4
A50: First American Title | B50: 1 | C50: 2000000 | D50: =B50/$B$52 -> 0.07142857143 | E50: =C50/$C$52 -> 0.4909782742 | F50: 4 | G50: 1
A51: Acme Title and Escrow | B51: 1 | C51: 74000 | D51: =B51/$B$52 -> 0.07142857143 | E51: =C51/$C$52 -> 0.01816619615 | F51: 4 | G51: 5
A52: GRAND TOTAL | B52: =SUM(B47:B51) -> 14 | C52: =SUM(C47:C51) -> 4073500 | D52: =SUM(D47:D51) -> 1 | E52: =SUM(E47:E51) -> 1
A54: CONVENTIONAL LOANS MARKET (Refi's) Excluding Incline Village
D55: % OF | E55: % OF | F55: RANK BY | G55: RANK BY
A56: TITLECOMPANY | B56: CLOSINGS | C56: DOLLAR VOLUME | D56: CLOSINGS | E56: DOLLAR VOLUME | F56: CLOSINGS | G56: DOLLAR VOLUME
A57: First Centennial Title | B57: 308 | C57: 99374832.5 | D57: =B57/$B$66 -> 0.2745098039 | E57: =C57/$C$66 -> 0.2950006023 | F57: 1 | G57: 1
A58: Western Title | B58: 232 | C58: 67113590 | D58: =B58/$B$66 -> 0.2067736185 | E58: =C58/$C$66 -> 0.1992310223 | F58: 2 | G58: 2
A59: First American Title | B59: 164 | C59: 50365414 | D59: =B59/$B$66 -> 0.1461675579 | E59: =C59/$C$66 -> 0.1495129812 | F59: 3 | G59: 3
A60: Ticor Title | B60: 156 | C60: 43406329.75 | D60: 0.1390374332 | E60: 0.1288544906 | F60: 4 | G60: 4
A61: Stewart Title | B61: 127 | C61: 37350553 | D61: 0.1131907308 | E61: 0.1108775266 | F61: 5 | G61: 5
A62: North American Title | B62: 57 | C62: 16352388 | D62: 0.05080213904 | E62: 0.04854311889 | F62: 6 | G62: 6
A63: Acme Title and Escrow | B63: 50 | C63: 13987536 | D63: 0.04456327986 | E63: 0.04152290314 | F63: 7 | G63: 7
A64: Toiyabe Title | B64: 17 | C64: 5377941 | D64: =B64/$B$66 -> 0.01515151515 | E64: =C64/$C$66 -> 0.01596476486 | F64: 8 | G64: 8
A65: Signature Title Company | B65: 11 | C65: 3534567 | D65: =B65/$B$66 -> 0.009803921569 | E65: =C65/$C$66 -> 0.0104925902 | F65: 9 | G65: 9
A66: GRAND TOTAL | B66: =SUM(B57:B65) -> 1122 | C66: =SUM(C57:C65) -> 336863151.2 | D66: =SUM(D57:D65) -> 1 | E66: =SUM(E57:E65) -> 1
A69: Information provided by Datasource
A70: www.datasourcenev.com

Sheet BRANCH SALES TRACKING
A1: BUILDER/DEVELOPER | B1: (All)
A2: PROPTYPE | B2: (All)
D4: Values
A5: TITLE COMPANY | B5: BRANCH | C5: EO | D5: CLOSINGS | E5: DOLLAR VOL. | F5: % OF CLOSINGS | G5: % OF DOLLAR VOL.
A6: Acme Title and Escrow | D6: 5 | E6: 1524000 | F6: 0.006877579092 | G6: 0.004487417224
B7: LANDER | D7: 5 | E7: 1524000 | F7: 0.006877579092 | G7: 0.004487417224
C8: LTE | D8: 4 | E8: 1292000 | F8: 0.005502063274 | G8: 0.003804293342
C9: YC | D9: 1 | E9: 232000 | F9: 0.001375515818 | G9: 0.0006831238818
A11: DHI Title of Nevada | D11: 4 | E11: 1674980 | F11: 0.005502063274 | G11: 0.004931977757
B12: LONGLEY | D12: 4 | E12: 1674980 | F12: 0.005502063274 | G12: 0.004931977757
C13: N/A | D13: 4 | E13: 1674980 | F13: 0.005502063274 | G13: 0.004931977757
A15: First American Title | D15: 47 | E15: 27791881.47 | F15: 0.06464924347 | G15: 0.08183318083
B16: INCLINE | D16: 4 | E16: 3372840 | F16: 0.005502063274 | G16: 0.009931325662
C17: VD | D17: 4 | E17: 3372840 | F17: 0.005502063274 | G17: 0.009931325662
B19: KIETZKE | D19: 29 | E19: 17942928.47 | F19: 0.03988995873 | G19: 0.05283294374
C20: KS | D20: 7 | E20: 1815000 | F20: 0.009628610729 | G20: 0.005344266575
C21: MLR | D21: 5 | E21: 10403458.47 | F21: 0.006877579092 | G21: 0.03063297817
C22: TK | D22: 13 | E22: 4054470 | F22: 0.01788170564 | G22: 0.01193838485
C23: MH | D23: 4 | E23: 1670000 | F23: 0.005502063274 | G23: 0.004917314149
B25: SPARKS | D25: 14 | E25: 6476113 | F25: 0.01925722146 | G25: 0.01906891143
C26: CY | D26: 8 | E26: 3522262 | F26: 0.01100412655 | G26: 0.01037129866
C27: JP | D27: 6 | E27: 2953851 | F27: 0.008253094911 | G27: 0.008697612765
A29: First Centennial Title | D29: 245 | E29: 114723235.9 | F29: 0.3370013755 | G29: 0.3378025098
B30: CARSON CITY | D30: 1 | E30: 97786.94 | F30: 0.001375515818 | G30: 0.000287933595
C31: 18 | D31: 1 | E31: 97786.94 | F31: 0.001375515818 | G31: 0.000287933595
B33: DAMONTE | D33: 30 | E33: 13058500 | F33: 0.04126547455 | G33: 0.0384507466
C34: 24 | D34: 30 | E34: 13058500 | F34: 0.04126547455 | G34: 0.0384507466
B36: INCLINE | D36: 5 | E36: 4769000 | F36: 0.006877579092 | G36: 0.01404231807
C37: 25 | D37: 5 | E37: 4769000 | F37: 0.006877579092 | G37: 0.01404231807
B39: LAKESIDE | D39: 18 | E39: 7406400 | F39: 0.02475928473 | G39: 0.02180814103
C40: 5 | D40: 18 | E40: 7406400 | F40: 0.02475928473 | G40: 0.02180814103
B42: LAKESIDEMOANA | D42: 39 | E42: 16769400 | F42: 0.05364511692 | G42: 0.04937748976
C43: 12 | D43: 39 | E43: 16769400 | F43: 0.05364511692 | G43: 0.04937748976
B45: RIDGEVIEW | D45: 111 | E45: 55715234 | F45: 0.1526822558 | G45: 0.1640534781
C46: 10 | D46: 25 | E46: 15389000 | F46: 0.03438789546 | G46: 0.04531290266
C47: 11 | D47: 16 | E47: 7568300 | F47: 0.02200825309 | G47: 0.02228485549
C48: 15 | D48: 16 | E48: 7956507 | F48: 0.02200825309 | G48: 0.02342793081
C49: 2 | D49: 2 | E49: 381000 | F49: 0.002751031637 | G49: 0.001121854306
C50: 20 | D50: 22 | E50: 11834337 | F50: 0.03026134801 | G50: 0.03484619927
C51: 9 | D51: 29 | E51: 12133090 | F51: 0.03988995873 | G51: 0.03572587732
C52: SL | D52: 1 | E52: 453000 | F52: 0.001375515818 | G52: 0.001333858269
B54: SPARKS | D54: 40 | E54: 16209415 | F54: 0.05502063274 | G54: 0.04772861421
C55: 21 | D55: 40 | E55: 16209415 | F55: 0.05502063274 | G55: 0.04772861421
B57: RI | D57: 1 | E57: 697500 | F57: 0.001375515818 | G57: 0.002053788395
C58: 15 | D58: 1 | E58: 697500 | F58: 0.001375515818 | G58: 0.002053788395
A60: North American Title | D60: 25 | E60: 9028490 | F60: 0.03438789546 | G60: 0.02658438421
B61: HAMMILL | D61: 25 | E61: 9028490 | F61: 0.03438789546 | G61: 0.02658438421
C62: RC | D62: 8 | E62: 3660500 | F62: 0.01100412655 | G62: 0.01077834039
C63: UNK | D63: 8 | E63: 2711990 | F63: 0.01100412655 | G63: 0.007985453174
C64: DMR | D64: 6 | E64: 1785000 | F64: 0.008253094911 | G64: 0.005255931591
C65: KM | D65: 2 | E65: 578000 | F65: 0.002751031637 | G65: 0.001701920706
C66: JF | D66: 1 | E66: 293000 | F66: 0.001375515818 | G66: 0.0008627383507
A68: Ticor Title | D68: 111 | E68: 51861661 | F68: 0.1526822558 | G68: 0.1527066344
B69: CARSON CITY | D69: 4 | E69: 1379900 | F69: 0.005502063274 | G69: 0.004063114847
C70: DKD | D70: 4 | E70: 1379900 | F70: 0.005502063274 | G70: 0.004063114847
B72: INCLINE | D72: 3 | E72: 2465000 | F72: 0.004126547455 | G72: 0.007258191244
C73: SLP | D73: 3 | E73: 2465000 | F73: 0.004126547455 | G73: 0.007258191244
B75: KIETZKE | D75: 54 | E75: 26740896 | F75: 0.0742778542 | G75: 0.07873855465
C76: AE | D76: 38 | E76: 21113396 | F76: 0.0522696011 | G76: 0.06216838377
C77: CD | D77: 1 | E77: 304000 | F77: 0.001375515818 | G77: 0.0008951278451
C78: KA | D78: 3 | E78: 913900 | F78: 0.004126547455 | G78: 0.002690978084
C79: RLS | D79: 9 | E79: 3254700 | F79: 0.01237964237 | G79: 0.009583462492
C80: TO | D80: 1 | E80: 529900 | F80: 0.001375515818 | G80: 0.00156029028
C81: ACM | D81: 2 | E81: 625000 | F81: 0.002751031637 | G81: 0.001840312182
B83: LAKESIDE | D83: 50 | E83: 21275865 | F83: 0.06877579092 | G83: 0.06264677365
C84: JN | D84: 19 | E84: 8004000 | F84: 0.02613480055 | G84: 0.02356777392
C85: SL | D85: 31 | E85: 13271865 | F85: 0.04264099037 | G85: 0.03907899973
A87: Toiyabe Title | D87: 17 | E87: 4661200 | F87: 0.02338376891 | G87: 0.01372490103
B88: MCCARRAN | D88: 17 | E88: 4661200 | F88: 0.02338376891 | G88: 0.01372490103
C89: JH | D89: 9 | E89: 2767400 | F89: 0.01237964237 | G89: 0.00814860789
C90: UNK | D90: 3 | E90: 911900 | F90: 0.004126547455 | G90: 0.002685089085
C91: KM | D91: 5 | E91: 981900 | F91: 0.006877579092 | G91: 0.00289120405
A93: Western Title | D93: 148 | E93: 57768594 | F93: 0.2035763411 | G93: 0.1700995956
B94: CARSON CITY | D94: 6 | E94: 2254737 | F94: 0.008253094911 | G94: 0.006639071948
C95: AMG | D95: 6 | E95: 2254737 | F95: 0.008253094911 | G95: 0.006639071948
B97: GARDNERVILLE | D97: 1 | E97: 1225000 | F97: 0.001375515818 | G97: 0.003607011876
C98: WLD | D98: 1 | E98: 1225000 | F98: 0.001375515818 | G98: 0.003607011876
B100: KIETZKE | D100: 88 | E100: 32652353 | F100: 0.121045392 | G100: 0.09614483678
C101: JMS | D101: 17 | E101: 5441700 | F101: 0.02338376891 | G101: 0.01602308288
C102: MDD | D102: 31 | E102: 10893984 | F102: 0.04264099037 | G102: 0.03207733034
C103: MLM | D103: 11 | E103: 4943995 | F103: 0.015130674 | G103: 0.01455759076
C104: PAH | D104: 4 | E104: 1350654 | F104: 0.005502063274 | G104: 0.003977000015
C105: SAB | D105: 11 | E105: 3822125 | F105: 0.015130674 | G105: 0.01125424512
C106: TEF | D106: 14 | E106: 6199895 | F106: 0.01925722146 | G106: 0.01825558767
B108: SOUTH KIETZKE | D108: 53 | E108: 21636504 | F108: 0.07290233838 | G108: 0.06370867501
C109: ASK | D109: 9 | E109: 3271500 | F109: 0.01237964237 | G109: 0.009632930083
C110: CKL | D110: 8 | E110: 2735500 | F110: 0.01100412655 | G110: 0.008054678357
C111: CRF | D111: 28 | E111: 11700504 | F111: 0.03851444292 | G111: 0.03445212807
C112: MIF | D112: 6 | E112: 3301000 | F112: 0.008253094911 | G112: 0.009719792818
C113: PHB | D113: 2 | E113: 628000 | F113: 0.002751031637 | G113: 0.00184914568
A115: Westminster Title - Las Vegas | D115: 55 | E115: 40349875 | F115: 0.07565337001 | G115: 0.1188101864
B116: LAS VEGAS | D116: 55 | E116: 40349875 | F116: 0.07565337001 | G116: 0.1188101864
C117: TB | D117: 55 | E117: 40349875 | F117: 0.07565337001 | G117: 0.1188101864
A119: Stewart Title | D119: 27 | E119: 10366800 | F119: 0.0371389271 | G119: 0.03052503732
B120: PLUMB | D120: 14 | E120: 5581300 | F120: 0.01925722146 | G120: 0.01643413501
C121: UNK | D121: 14 | E121: 5581300 | F121: 0.01925722146 | G121: 0.01643413501
B123: PROFESSIONAL | D123: 13 | E123: 4785500 | F123: 0.01788170564 | G123: 0.01409090231
C124: UNK | D124: 13 | E124: 4785500 | F124: 0.01788170564 | G124: 0.01409090231
A126: Calatlantic Title West | D126: 36 | E126: 16160675 | F126: 0.04951856946 | G126: 0.04758509931
B127: MCCARRAN | D127: 36 | E127: 16160675 | F127: 0.04951856946 | G127: 0.04758509931
C128: LH | D128: 36 | E128: 16160675 | F128: 0.04951856946 | G128: 0.04758509931
A130: Signature Title Company | D130: 7 | E130: 3704900 | F130: 0.009628610729 | G130: 0.01090907616
B131: RENO CORPORATE | D131: 7 | E131: 3704900 | F131: 0.009628610729 | G131: 0.01090907616
C132: FF | D132: 5 | E132: 2001900 | F132: 0.006877579092 | G132: 0.00589459353
C133: DP | D133: 2 | E133: 1703000 | F133: 0.002751031637 | G133: 0.005014482632
A135: Grand Total | D135: 727 | E135: 339616292.4 | F135: 1 | G135: 1

Sheet LENDER TRACKING
A1: TYPELOAN | B1: (All)
C3: Values
A4: LENDER | B4: TITLE COMPANY | C4: CLOSINGS | D4: DOLLAR VOL. | E4: % OF CLOSINGS | F4: % OF DOLLAR VOL.
A5: ALL WESTERN MORTGAGE INC | C5: 22 | D5: 6793677 | E5: 0.01831806828 | F5: 0.0152678
B6: Acme Title and Escrow | C6: 1 | D6: 409990 | E6: 0.0008326394671 | F6: 0.0009213928368
B7: First American Title | C7: 13 | D7: 3293937 | E7: 0.01082431307 | F7: 0.007402643861
B8: First Centennial Title | C8: 5 | D8: 2345550 | E8: 0.004163197336 | F8: 0.005271282149
B9: North American Title | C9: 2 | D9: 259000 | E9: 0.001665278934 | F9: 0.0005820647936
B10: Western Title | C10: 1 | D10: 485200 | E10: 0.0008326394671 | F10: 0.001090416362
A12: AMERICAN PACIFIC MORTGAGE CORPORATION | C12: 5 | D12: 1555650 | E12: 0.004163197336 | F12: 0.003496096896
B13: First American Title | C13: 1 | D13: 323700 | E13: 0.0008326394671 | F13: 0.0007274686243
B14: First Centennial Title | C14: 1 | D14: 282700 | E14: 0.0008326394671 | F14: 0.0006353270932
B15: Ticor Title | C15: 1 | D15: 445250 | E15: 0.0008326394671 | F15: 0.001000634553
B16: Western Title | C16: 2 | D16: 504000 | E16: 0.001665278934 | F16: 0.001132666625
A18: AXIA FINANCIAL LLC | C18: 31 | D18: 8866925 | E18: 0.02581182348 | F18: 0.01992712305
B19: First American Title | C19: 3 | D19: 806700 | E19: 0.002497918401 | F19: 0.001812940807
B20: First Centennial Title | C20: 5 | D20: 1556875 | E20: 0.004163197336 | F20: 0.003498849905
B21: Ticor Title | C21: 2 | D21: 730000 | E21: 0.001665278934 | F21: 0.001640568723
B22: Western Title | C22: 9 | D22: 2548150 | E22: 0.007493755204 | F22: 0.005726596154
B23: Stewart Title | C23: 12 | D23: 3225200 | E23: 0.009991673605 | F23: 0.00724816746
A25: BANK OF AMERICA NA | C25: 1 | D25: 230000 | E25: 0.0008326394671 | F25: 0.0005168915155
B26: First Centennial Title | C26: 1 | D26: 230000 | E26: 0.0008326394671 | F26: 0.0005168915155
A28: BANK OF THE WEST | C28: 5 | D28: 464206.75 | E28: 0.004163197336 | F28: 0.001043237089
B29: First American Title | C29: 4 | D29: 268925 | E29: 0.003330557868 | F29: 0.0006043697862
B30: Ticor Title | C30: 1 | D30: 195281.75 | E30: 0.0008326394671 | F30: 0.0004388673031
A32: BAY EQUITY LLC | C32: 13 | D32: 3832150 | E32: 0.01082431307 | F32: 0.008612199223
B33: Acme Title and Escrow | C33: 11 | D33: 3241150 | E33: 0.009159034138 | F33: 0.007284012763
B34: Western Title | C34: 1 | D34: 232000 | E34: 0.0008326394671 | F34: 0.0005213862244
B35: Stewart Title | C35: 1 | D35: 359000 | E35: 0.0008326394671 | F35: 0.0008068002351
A37: CALIBER HOME LOANS INC | C37: 39 | D37: 11585639 | E37: 0.03247293922 | F37: 0.02603703696
B38: First American Title | C38: 10 | D38: 3307250 | E38: 0.008326394671 | F38: 0.00743256289
B39: First Centennial Title | C39: 12 | D39: 3626689 | E39: 0.009991673605 | F39: 0.008150455537
B40: Ticor Title | C40: 6 | D40: 1809900 | E40: 0.004995836803 | F40: 0.004067486756
B41: Western Title | C41: 10 | D41: 2486800 | E41: 0.008326394671 | F41: 0.00558872096
B42: Stewart Title | C42: 1 | D42: 355000 | E42: 0.0008326394671 | F42: 0.0007978108175
A44: CARDINAL FINANCIAL COMPANY LIMITED PARTNERSHIP | C44: 25 | D44: 8054983 | E44: 0.02081598668 | F44: 0.01810240161
B45: First American Title | C45: 6 | D45: 1704589 | E45: 0.004995836803 | F45: 0.003830815616
B46: First Centennial Title | C46: 7 | D46: 2517810 | E46: 0.00582847627 | F46: 0.005658411421
B47: Ticor Title | C47: 8 | D47: 2543384 | E47: 0.006661115737 | F47: 0.005715885262
B48: Western Title | C48: 3 | D48: 889200 | E48: 0.002497918401 | F48: 0.001998347546
B49: Stewart Title | C49: 1 | D49: 400000 | E49: 0.0008326394671 | F49: 0.0008989417661
A51: CITY NATIONAL BANK | C51: 3 | D51: 2187000 | E51: 0.002497918401 | F51: 0.004914964106
B52: First Centennial Title | C52: 2 | D52: 1115000 | E52: 0.001665278934 | F52: 0.002505800173
B53: Western Title | C53: 1 | D53: 1072000 | E53: 0.0008326394671 | F53: 0.002409163933
A55: EVERGREEN MONEYSOURCE MORTGAGE COMPANY | C55: 35 | D55: 10830850 | E55: 0.02914238135 | F55: 0.02434075857
B56: Acme Title and Escrow | C56: 2 | D56: 528300 | E56: 0.001665278934 | F56: 0.001187277338
B57: First Centennial Title | C57: 6 | D57: 2048200 | E57: 0.004995836803 | F57: 0.004603031314
B58: Ticor Title | C58: 4 | D58: 907000 | E58: 0.003330557868 | F58: 0.002038350455
B59: Western Title | C59: 19 | D59: 6147600 | E59: 0.01582014988 | F59: 0.013815836
B60: Stewart Title | C60: 4 | D60: 1199750 | E60: 0.003330557868 | F60: 0.00269626346
A62: FAIRWAY INDEPENDENT MORTGAGE CORPORATION | C62: 2 | D62: 896000 | E62: 0.001665278934 | F62: 0.002013629556
B63: First Centennial Title | C63: 1 | D63: 326000 | E63: 0.0008326394671 | F63: 0.0007326375394
B64: Western Title | C64: 1 | D64: 570000 | E64: 0.0008326394671 | F64: 0.001280992017
A66: FINANCE OF AMERICA MORTGAGE LLC | C66: 20 | D66: 6118518 | E66: 0.01665278934 | F66: 0.01375047844
B67: Acme Title and Escrow | C67: 1 | D67: 104000 | E67: 0.0008326394671 | F67: 0.0002337248592
B68: First American Title | C68: 3 | D68: 926000 | E68: 0.002497918401 | F68: 0.002081050189
B69: First Centennial Title | C69: 3 | D69: 1013000 | E69: 0.002497918401 | F69: 0.002276570023
B70: Ticor Title | C70: 5 | D70: 1637100 | E70: 0.004163197336 | F70: 0.003679143913
B71: Western Title | C71: 3 | D71: 679918 | E71: 0.002497918401 | F71: 0.001528016719
B72: Stewart Title | C72: 5 | D72: 1758500 | E72: 0.004163197336 | F72: 0.003951972739
A74: FIRST CHOICE LOAN SERVICES INC | C74: 1 | D74: 496000 | E74: 0.0008326394671 | F74: 0.00111468779
B75: First American Title | C75: 1 | D75: 496000 | E75: 0.0008326394671 | F75: 0.00111468779
A77: FLAGSTAR BANK FSB | C77: 7 | D77: 2176000 | E77: 0.00582847627 | F77: 0.004890243208
B78: First Centennial Title | C78: 3 | D78: 1043000 | E78: 0.002497918401 | F78: 0.002343990655
B79: Western Title | C79: 4 | D79: 1133000 | E79: 0.003330557868 | F79: 0.002546252553
A81: GREAT BASIN FEDERAL CREDIT UNION | C81: 5 | D81: 711500 | E81: 0.004163197336 | F81: 0.001598992667
B82: First American Title | C82: 1 | D82: 194500 | E82: 0.0008326394671 | F82: 0.0004371104338
B83: Western Title | C83: 2 | D83: 387000 | E83: 0.001665278934 | F83: 0.0008697261587
B84: Stewart Title | C84: 2 | D84: 130000 | E84: 0.001665278934 | F84: 0.000292156074
A86: GREATER NEVADA CREDIT UNION | C86: 1 | D86: 1914387 | E86: 0.0008326394671 | F86: 0.004302306077
B87: First American Title | C87: 1 | D87: 1914387 | E87: 0.0008326394671 | F87: 0.004302306077
A89: GREATER NEVADA MORTGAGE | C89: 82 | D89: 21895883 | E89: 0.0682764363 | F89: 0.04920780934
B90: Acme Title and Escrow | C90: 3 | D90: 857500 | E90: 0.002497918401 | F90: 0.001927106411
B91: First American Title | C91: 8 | D91: 2032900 | E91: 0.006661115737 | F91: 0.004568646791
B92: First Centennial Title | C92: 17 | D92: 4815603 | E92: 0.01415487094 | F92: 0.01082236666
B93: North American Title | C93: 4 | D93: 1147440 | E93: 0.003330557868 | F93: 0.00257870435
B94: Ticor Title | C94: 21 | D94: 5834140 | E94: 0.01748542881 | F94: 0.01311138029
B95: Western Title | C95: 11 | D95: 2937500 | E95: 0.009159034138 | F95: 0.006601603595
B96: Stewart Title | C96: 18 | D96: 4270800 | E96: 0.01498751041 | F96: 0.009598001237
A98: GUARANTEED RATE INC | C98: 8 | D98: 2258894 | E98: 0.006661115737 | F98: 0.005076535405
B99: First American Title | C99: 1 | D99: 230100 | E99: 0.0008326394671 | F99: 0.000517116251
B100: First Centennial Title | C100: 6 | D100: 1686794 | E100: 0.004995836803 | F100: 0.003790823944
B101: Ticor Title | C101: 1 | D101: 342000 | E101: 0.0008326394671 | F101: 0.0007685952101
A103: GUILD MORTGAGE COMPANY | C103: 207 | D103: 57773764 | E103: 0.1723563697 | F103: 0.1298381236
B104: Acme Title and Escrow | C104: 6 | D104: 1724690 | E104: 0.004995836803 | F104: 0.003875989687
B105: First American Title | C105: 33 | D105: 9097822 | E105: 0.02747710241 | F105: 0.02044603044
B106: First Centennial Title | C106: 28 | D106: 7393748 | E106: 0.02331390508 | F106: 0.01661637221
B107: North American Title | C107: 1 | D107: 349500 | E107: 0.0008326394671 | F107: 0.0007854503682
B108: Ticor Title | C108: 45 | D108: 12459507 | E108: 0.03746877602 | F108: 0.02800092807
B109: Toiyabe Title | C109: 6 | D109: 1525375 | E109: 0.004995836803 | F109: 0.003428058241
B110: Western Title | C110: 66 | D110: 18557143 | E110: 0.05495420483 | F110: 0.04170447726
B111: Stewart Title | C111: 22 | D111: 6665979 | E111: 0.01831806828 | F111: 0.01498081734
A113: HERITAGE BANK OF NEVADA | C113: 8 | D113: 2720750 | E113: 0.006661115737 | F113: 0.006114489526
B114: First Centennial Title | C114: 7 | D114: 2053750 | E114: 0.00582847627 | F114: 0.004615504131
B115: Western Title | C115: 1 | D115: 667000 | E115: 0.0008326394671 | F115: 0.001498985395
A117: HOMEOWNERS FINANCIAL GROUP USA LLC | C117: 2 | D117: 413700 | E117: 0.001665278934 | F117: 0.0009297305216
B118: First American Title | C118: 1 | D118: 203000 | E118: 0.0008326394671 | F118: 0.0004562129463
B119: North American Title | C119: 1 | D119: 210700 | E119: 0.0008326394671 | F119: 0.0004735175753
A121: ISERVE RESIDENTIAL LENDING LLC | C121: 8 | D121: 2768611 | E121: 0.006661115737 | F121: 0.006222050155
B122: First Centennial Title | C122: 3 | D122: 1198300 | E122: 0.002497918401 | F122: 0.002693004796
B123: North American Title | C123: 5 | D123: 1570311 | E123: 0.004163197336 | F123: 0.003529045359
A125: JPMORGAN CHASE BANK NA | C125: 2 | D125: 687612 | E125: 0.001665278934 | F125: 0.001545307864
B126: First Centennial Title | C126: 1 | D126: 586000 | E126: 0.0008326394671 | F126: 0.001316949687
B127: Western Title | C127: 1 | D127: 101612 | E127: 0.0008326394671 | F127: 0.0002283581769
A129: LAND HOME FINANCIAL SERVICES INC | C129: 3 | D129: 594000 | E129: 0.002497918401 | F129: 0.001334928523
B130: First Centennial Title | C130: 3 | D130: 594000 | E130: 0.002497918401 | F130: 0.001334928523
A132: LOANDEPOT.COM LLC | C132: 7 | D132: 2138500 | E132: 0.00582847627 | F132: 0.004805967417
B133: First Centennial Title | C133: 7 | D133: 2138500 | E133: 0.00582847627 | F133: 0.004805967417
A135: MANN MORTGAGE LLC | C135: 6 | D135: 2243630 | E135: 0.004995836803 | F135: 0.005042231787
B136: First Centennial Title | C136: 2 | D136: 706130 | E136: 0.001665278934 | F136: 0.001586924373
B137: Western Title | C137: 1 | D137: 409000 | E137: 0.0008326394671 | F137: 0.0009191679559
B138: Stewart Title | C138: 2 | D138: 803000 | E138: 0.001665278934 | F138: 0.001804625596
B139: Signature Title Company | C139: 1 | D139: 325500 | E139: 0.0008326394671 | F139: 0.0007315138622
A141: MASON MCDUFFIE MORTGAGE CORPORATION | C141: 9 | D141: 3128338 | E141: 0.007493755204 | F141: 0.007030484217
B142: First American Title | C142: 4 | D142: 1474038 | E142: 0.003330557868 | F142: 0.003312685808
B143: Ticor Title | C143: 1 | D143: 487000 | E143: 0.0008326394671 | F143: 0.0010944616
B144: Western Title | C144: 4 | D144: 1167300 | E144: 0.003330557868 | F144: 0.002623336809
A146: MOUNTAIN AMERICA FEDERAL CREDIT UNION | C146: 11 | D146: 3577498 | E146: 0.009159034138 | F146: 0.008039905926
B147: First American Title | C147: 2 | D147: 613500 | E147: 0.001665278934 | F147: 0.001378751934
B148: First Centennial Title | C148: 6 | D148: 1812998 | E148: 0.004995836803 | F148: 0.00407444906
B149: Ticor Title | C149: 1 | D149: 368500 | E149: 0.0008326394671 | F149: 0.0008281501021
B150: Western Title | C150: 2 | D150: 782500 | E150: 0.001665278934 | F150: 0.00175855483
A152: NEVADA STATE BANK | C152: 7 | D152: 1626501 | E152: 0.00582847627 | F152: 0.003655324204
B153: First American Title | C153: 4 | D153: 966001 | E153: 0.003330557868 | F153: 0.002170946613
B154: First Centennial Title | C154: 3 | D154: 660500 | E154: 0.002497918401 | F154: 0.001484377591
A156: NEVADA STATE DEVELOPMENT CORPORATION | C156: 1 | D156: 210000 | E156: 0.0008326394671 | F156: 0.0004719444272
B157: First Centennial Title | C157: 1 | D157: 210000 | E157: 0.0008326394671 | F157: 0.0004719444272
A159: NEW AMERICAN FUNDING | C159: 66 | D159: 22989322 | E159: 0.05495420483 | F159: 0.0516651543
B160: Acme Title and Escrow | C160: 2 | D160: 725000 | E160: 0.001665278934 | F160: 0.001629331951
B161: First American Title | C161: 27 | D161: 11399514 | E161: 0.02248126561 | F161: 0.02561874812
B162: First Centennial Title | C162: 13 | D162: 4123368 | E162: 0.01082431307 | F162: 0.009266669281
B163: North American Title | C163: 7 | D163: 1707565 | E163: 0.00582847627 | F163: 0.003837503742
B164: Ticor Title | C164: 2 | D164: 502000 | E164: 0.001665278934 | F164: 0.001128171917
B165: Toiyabe Title | C165: 2 | D165: 579000 | E165: 0.001665278934 | F165: 0.001301218206
B166: Western Title | C166: 7 | D166: 2338255 | E166: 0.00582847627 | F166: 0.005254887699
B167: Stewart Title | C167: 5 | D167: 1416620 | E167: 0.004163197336 | F167: 0.003183647212
B168: Signature Title Company | C168: 1 | D168: 198000 | E168: 0.0008326394671 | F168: 0.0004449761742
A170: ON Q FINANCIAL INC | C170: 14 | D170: 3902925 | E170: 0.01165695254 | F170: 0.008771255732
B171: Acme Title and Escrow | C171: 1 | D171: 327150 | E171: 0.0008326394671 | F171: 0.000735221997
B172: First American Title | C172: 1 | D172: 210000 | E172: 0.0008326394671 | F172: 0.0004719444272
B173: First Centennial Title | C173: 3 | D173: 1320350 | E173: 0.002497918401 | F173: 0.002967294402
B174: Ticor Title | C174: 6 | D174: 1224175 | E174: 0.004995836803 | F174: 0.002751155091
B175: Western Title | C175: 3 | D175: 821250 | E175: 0.002497918401 | F175: 0.001845639814
A177: ONE NEVADA CREDIT UNION | C177: 8 | D177: 2382800 | E177: 0.006661115737 | F177: 0.005354996101
B178: First Centennial Title | C178: 8 | D178: 2382800 | E178: 0.006661115737 | F178: 0.005354996101
A180: ONETRUST HOME LOANS | C180: 24 | D180: 7319456 | E180: 0.01998334721 | F180: 0.01644941176
B181: Acme Title and Escrow | C181: 8 | D181: 2074855 | E181: 0.006661115737 | F181: 0.004662934545
B182: First American Title | C182: 2 | D182: 684537 | E182: 0.001665278934 | F182: 0.001538397249
B183: North American Title | C183: 1 | D183: 199900 | E183: 0.0008326394671 | F183: 0.0004492461476
B184: Ticor Title | C184: 1 | D184: 355368 | E184: 0.0008326394671 | F184: 0.0007986378439
B185: Western Title | C185: 8 | D185: 2603819 | E185: 0.006661115737 | F185: 0.005851704126
B186: Signature Title Company | C186: 4 | D186: 1400977 | E186: 0.003330557868 | F186: 0.003148491847
A188: PARAMOUNT RESIDENTIAL MORTGAGE GROUP INC | C188: 2 | D188: 616000 | E188: 0.001665278934 | F188: 0.00138437032
B189: First Centennial Title | C189: 1 | D189: 264000 | E189: 0.0008326394671 | F189: 0.0005933015657
B190: Toiyabe Title | C190: 1 | D190: 352000 | E190: 0.0008326394671 | F190: 0.0007910687542
A192: PLUMAS BANK | C192: 2 | D192: 4046000 | E192: 0.001665278934 | F192: 0.009092795965
B193: First Centennial Title | C193: 2 | D193: 4046000 | E193: 0.001665278934 | F193: 0.009092795965
A195: PRIMELENDING | C195: 53 | D195: 16225360 | E195: 0.04412989176 | F195: 0.03646413444
B196: Acme Title and Escrow | C196: 4 | D196: 1106186 | E196: 0.003330557868 | F196: 0.002485991991
B197: First Centennial Title | C197: 17 | D197: 6295050 | E197: 0.01415487094 | F197: 0.01414720841
B198: North American Title | C198: 6 | D198: 1551339 | E198: 0.004995836803 | F198: 0.003486408551
B199: Ticor Title | C199: 11 | D199: 2899400 | E199: 0.009159034138 | F199: 0.006515979392
B200: Western Title | C200: 6 | D200: 1617500 | E200: 0.004995836803 | F200: 0.003635095767
B201: Stewart Title | C201: 9 | D201: 2755885 | E201: 0.007493755204 | F201: 0.006193450323
A203: PROVIDENT FUNDING ASSOCIATES LP | C203: 11 | D203: 3048890 | E203: 0.009159034138 | F203: 0.006851936403
B204: First Centennial Title | C204: 2 | D204: 349390 | E204: 0.001665278934 | F204: 0.0007852031592
B205: Ticor Title | C205: 1 | D205: 283000 | E205: 0.0008326394671 | F205: 0.0006360012995
B206: Western Title | C206: 8 | D206: 2416500 | E206: 0.006661115737 | F206: 0.005430731945
A208: QUICKEN LOANS INC | C208: 9 | D208: 2380200 | E208: 0.007493755204 | F208: 0.005349152979
B209: First Centennial Title | C209: 3 | D209: 657700 | E209: 0.002497918401 | F209: 0.001478084999
B210: Ticor Title | C210: 1 | D210: 149000 | E210: 0.0008326394671 | F210: 0.0003348558079
B211: Toiyabe Title | C211: 1 | D211: 288500 | E211: 0.0008326394671 | F211: 0.0006483617488
B212: Western Title | C212: 4 | D212: 1285000 | E212: 0.003330557868 | F212: 0.002887850424
A214: SIERRA PACIFIC MORTGAGE COMPANY INC | C214: 6 | D214: 1873500 | E214: 0.004995836803 | F214: 0.004210418497
B215: First American Title | C215: 1 | D215: 417000 | E215: 0.0008326394671 | F215: 0.0009371467912
B216: First Centennial Title | C216: 3 | D216: 851500 | E216: 0.002497918401 | F216: 0.001913622285
B217: North American Title | C217: 1 | D217: 270000 | E217: 0.0008326394671 | F217: 0.0006067856921
B218: Ticor Title | C218: 1 | D218: 335000 | E218: 0.0008326394671 | F218: 0.0007528637291
A220: SUMMIT FUNDING INC | C220: 26 | D220: 8476651 | E220: 0.02164862614 | F220: 0.01905003905
B221: First American Title | C221: 7 | D221: 2101412 | E221: 0.00582847627 | F221: 0.004722617537
B222: First Centennial Title | C222: 6 | D222: 2444015 | E222: 0.004995836803 | F222: 0.005492567901
B223: North American Title | C223: 3 | D223: 1211700 | E223: 0.002497918401 | F223: 0.002723119345
B224: Ticor Title | C224: 5 | D224: 1221879 | E224: 0.004163197336 | F224: 0.002745995166
B225: Western Title | C225: 4 | D225: 1384645 | E225: 0.003330557868 | F225: 0.003111788054
B226: Stewart Title | C226: 1 | D226: 113000 | E226: 0.0008326394671 | F226: 0.0002539510489
A228: SYNERGY HOME MORTGAGE LLC | C228: 33 | D228: 11295614 | E228: 0.02747710241 | F228: 0.025385248
B229: First Centennial Title | C229: 30 | D229: 10597814 | E229: 0.02497918401 | F229: 0.02381704409
B230: Ticor Title | C230: 2 | D230: 622800 | E230: 0.001665278934 | F230: 0.00139965233
B231: Western Title | C231: 1 | D231: 75000 | E231: 0.0008326394671 | F231: 0.0001685515812
A233: UMPQUA BANK | C233: 15 | D233: 4849541 | E233: 0.01248959201 | F233: 0.01089863738
B234: First Centennial Title | C234: 5 | D234: 1637500 | E234: 0.004163197336 | F234: 0.003680042855
B235: Ticor Title | C235: 6 | D235: 1963800 | E235: 0.004995836803 | F235: 0.004413354601
B236: Western Title | C236: 1 | D236: 437241 | E236: 0.0008326394671 | F236: 0.0009826354919
B237: Stewart Title | C237: 3 | D237: 811000 | E237: 0.002497918401 | F237: 0.001822604431
A239: UNITED FEDERAL CREDIT UNION | C239: 60 | D239: 22271866 | E239: 0.04995836803 | F239: 0.05005277639
B240: Acme Title and Escrow | C240: 5 | D240: 1324400 | E240: 0.004163197336 | F240: 0.002976396188
B241: First American Title | C241: 1 | D241: 186000 | E241: 0.0008326394671 | F241: 0.0004180079213
B242: First Centennial Title | C242: 40 | D242: 16149566 | E242: 0.03330557868 | F242: 0.03629379846
B243: Ticor Title | C243: 1 | D243: 250000 | E243: 0.0008326394671 | F243: 0.0005618386038
B244: Western Title | C244: 1 | D244: 274000 | E244: 0.0008326394671 | F244: 0.0006157751098
... 246 more rows

Sheet BUILDER TRACKING
A1: BUILDER TRACKING
A2: ='OVERALL STATS'!A2 -> Reporting Period: APRIL, 2020
A4: BUILDER | B4: CLOSINGS | C4: DOLLARVOL | D4: AVERAGE | E4: % OF CLOSINGS | F4: % OF $$$ VOLUME
A5: TOLL NV LIMITED PARTNERSHIP | B5: 46 | C5: 30816778 | D5: 669929.9565 | E5: =Table2[[#This Row],[CLOSINGS]]/$B$34 -> 0.2754491018 | F5: =Table2[[#This Row],[DOLLARVOL]]/$C$34 -> 0.3321999839
A6: LENNAR RENO LLC | B6: 36 | C6: 16160675 | D6: 448907.6389 | E6: =Table2[[#This Row],[CLOSINGS]]/$B$34 -> 0.2155688623 | F6: =Table2[[#This Row],[DOLLARVOL]]/$C$34 -> 0.1742095158
A7: FALCON RIDGE BY DESERT WIND LP | B7: 8 | C7: 2591253 | D7: 323906.625 | E7: =Table2[[#This Row],[CLOSINGS]]/$B$34 -> 0.04790419162 | F7: =Table2[[#This Row],[DOLLARVOL]]/$C$34 -> 0.02793329676
A8: RYDER SHADOW LLC | B8: 6 | C8: 3702402 | D8: 617067 | E8: =Table2[[#This Row],[CLOSINGS]]/$B$34 -> 0.03592814371 | F8: =Table2[[#This Row],[DOLLARVOL]]/$C$34 -> 0.03991130691
A9: TERRENO DEVELOPMENT LLC | B9: 6 | C9: 3075986 | D9: 512664.3333 | E9: =Table2[[#This Row],[CLOSINGS]]/$B$34 -> 0.03592814371 | F9: =Table2[[#This Row],[DOLLARVOL]]/$C$34 -> 0.03315864169
A10: EAGLE CANYON SOUTH LLC | B10: 6 | C10: 2700714 | D10: 450119 | E10: =Table2[[#This Row],[CLOSINGS]]/$B$34 -> 0.03592814371 | F10: =Table2[[#This Row],[DOLLARVOL]]/$C$34 -> 0.02911326899
A11: SILVERADO EAGLE CANYON LLC | B11: 5 | C11: 2389899 | D11: 477979.8 | E11: =Table2[[#This Row],[CLOSINGS]]/$B$34 -> 0.02994011976 | F11: =Table2[[#This Row],[DOLLARVOL]]/$C$34 -> 0.02576273254
A12: WVN PHASE 21 LLC | B12: 5 | C12: 1776690 | D12: 355338 | E12: =Table2[[#This Row],[CLOSINGS]]/$B$34 -> 0.02994011976 | F12: =Table2[[#This Row],[DOLLARVOL]]/$C$34 -> 0.01915243668
A13: TOLL SOUTH RENO LLC | B13: 4 | C13: 4563648 | D13: 1140912 | E13: =Table2[[#This Row],[CLOSINGS]]/$B$34 -> 0.02395209581 | F13: =Table2[[#This Row],[DOLLARVOL]]/$C$34 -> 0.04919540233
A14: TOLL NORTH RENO LLC | B14: 4 | C14: 3944042 | D14: 986010.5 | E14: =Table2[[#This Row],[CLOSINGS]]/$B$34 -> 0.02395209581 | F14: =Table2[[#This Row],[DOLLARVOL]]/$C$34 -> 0.04251614783
A15: WEDGE MEADOWS HOMES LLC | B15: 4 | C15: 2606633 | D15: 651658.25 | E15: =Table2[[#This Row],[CLOSINGS]]/$B$34 -> 0.02395209581 | F15: =Table2[[#This Row],[DOLLARVOL]]/$C$34 -> 0.02809909072
A16: DR HORTON INC | B16: 4 | C16: 1674980 | D16: 418745 | E16: =Table2[[#This Row],[CLOSINGS]]/$B$34 -> 0.02395209581 | F16: =Table2[[#This Row],[DOLLARVOL]]/$C$34 -> 0.018056019
A17: SILVERADO CYAN LLC | B17: 4 | C17: 1626763 | D17: 406690.75 | E17: =Table2[[#This Row],[CLOSINGS]]/$B$34 -> 0.02395209581 | F17: =Table2[[#This Row],[DOLLARVOL]]/$C$34 -> 0.01753624738
A18: SBE 64 POINTE LLC | B18: 3 | C18: 2144857 | D18: 714952.3333 | E18: =Table2[[#This Row],[CLOSINGS]]/$B$34 -> 0.01796407186 | F18: =Table2[[#This Row],[DOLLARVOL]]/$C$34 -> 0.02312121861
A19: RYDER SIERRA SHADOWS LLC | B19: 3 | C19: 1443094 | D19: 481031.3333 | E19: =Table2[[#This Row],[CLOSINGS]]/$B$34 -> 0.01796407186 | F19: =Table2[[#This Row],[DOLLARVOL]]/$C$34 -> 0.01555632466
A20: WEST COAST HOME BUILDERS INC | B20: 3 | C20: 1317391 | D20: 439130.3333 | E20: =Table2[[#This Row],[CLOSINGS]]/$B$34 -> 0.01796407186 | F20: =Table2[[#This Row],[DOLLARVOL]]/$C$34 -> 0.01420126624
A21: NEVADA FINISH LLC | B21: 3 | C21: 1190654 | D21: 396884.6667 | E21: =Table2[[#This Row],[CLOSINGS]]/$B$34 -> 0.01796407186 | F21: =Table2[[#This Row],[DOLLARVOL]]/$C$34 -> 0.01283506146
A22: RANCHO HILLS BY DESERT WIND LP | B22: 3 | C22: 843987 | D22: 281329 | E22: =Table2[[#This Row],[CLOSINGS]]/$B$34 -> 0.01796407186 | F22: =Table2[[#This Row],[DOLLARVOL]]/$C$34 -> 0.00909804613
A23: TL WHISPERING CANYON LP | B23: 2 | C23: 1886383 | D23: 943191.5 | E23: =Table2[[#This Row],[CLOSINGS]]/$B$34 -> 0.0119760479 | F23: =Table2[[#This Row],[DOLLARVOL]]/$C$34 -> 0.02033490984
A24: JENUANE COMMUNITIES NORTHRIDGE LLC | B24: 2 | C24: 813187 | D24: 406593.5 | E24: =Table2[[#This Row],[CLOSINGS]]/$B$34 -> 0.0119760479 | F24: =Table2[[#This Row],[DOLLARVOL]]/$C$34 -> 0.00876602701
A25: PARADISO COMMUNITIES LLC | B25: 2 | C25: 729010 | D25: 364505 | E25: =Table2[[#This Row],[CLOSINGS]]/$B$34 -> 0.0119760479 | F25: =Table2[[#This Row],[DOLLARVOL]]/$C$34 -> 0.007858612288
A26: PINE BLUFF PROPERTIES LLC | B26: 1 | C26: 1111041 | D26: 1111041 | E26: =Table2[[#This Row],[CLOSINGS]]/$B$34 -> 0.005988023952 | F26: =Table2[[#This Row],[DOLLARVOL]]/$C$34 -> 0.01197684594
A27: TOLL NVLIMITED PARTNERSHIP | B27: 1 | C27: 1025407 | D27: 1025407 | E27: =Table2[[#This Row],[CLOSINGS]]/$B$34 -> 0.005988023952 | F27: =Table2[[#This Row],[DOLLARVOL]]/$C$34 -> 0.01105372498
A28: NORTHERN NEVADA HOMES LLC | B28: 1 | C28: 569000 | D28: 569000 | E28: =Table2[[#This Row],[CLOSINGS]]/$B$34 -> 0.005988023952 | F28: =Table2[[#This Row],[DOLLARVOL]]/$C$34 -> 0.006133729842
A29: QUEST RENO LLC | B29: 1 | C29: 521341 | D29: 521341 | E29: =Table2[[#This Row],[CLOSINGS]]/$B$34 -> 0.005988023952 | F29: =Table2[[#This Row],[DOLLARVOL]]/$C$34 -> 0.005619973373
A30: SILVERADO SKY RIDGE LLC | B30: 1 | C30: 520599 | D30: 520599 | E30: =Table2[[#This Row],[CLOSINGS]]/$B$34 -> 0.005988023952 | F30: =Table2[[#This Row],[DOLLARVOL]]/$C$34 -> 0.005611974731
A31: WEST COAST HOME BUILDERS INC; WEST COAST BUILDERS INC | B31: 1 | C31: 405000 | D31: 405000 | E31: =Table2[[#This Row],[CLOSINGS]]/$B$34 -> 0.005988023952 | F31: =Table2[[#This Row],[DOLLARVOL]]/$C$34 -> 0.004365835828
A32: REGENCY PARK HOMES INC | B32: 1 | C32: 340088 | D32: 340088 | E32: =Table2[[#This Row],[CLOSINGS]]/$B$34 -> 0.005988023952 | F32: =Table2[[#This Row],[DOLLARVOL]]/$C$34 -> 0.003666094753
A33: RANCHO HILLLS BY DESERT WIND LP; RANCHO HILLS BY DESERT WIND LP | B33: 1 | C33: 274240 | D33: 274240 | E33: =Table2[[#This Row],[CLOSINGS]]/$B$34 -> 0.005988023952 | F33: =Table2[[#This Row],[DOLLARVOL]]/$C$34 -> 0.002956263747
A34: GRAND TOTAL | B34: =SUM(B5:B33) -> 167 | C34: =SUM(C5:C33) -> 92765742 | E34: =SUM(E5:E33) -> 1 | F34: =SUM(F5:F33) -> 1

Sheet SALES_LIST (hidden)
A1: FULLNAME | B1: RECBY | C1: BRANCH | D1: EO | E1: PROPTYPE | F1: DOCNUM | G1: AMOUNT | H1: SUB | I1: INSURED | J1: RECDATE | K1: Last Row: | L1: 728
A2: Acme Title and Escrow | B2: ACT | C2: LANDER | D2: YC | E2: MOBILE HOME | F2: 5018979 | G2: 232000 | H2: NO | I2: YES | J2: 43934
A3: Acme Title and Escrow | B3: ACT | C3: LANDER | D3: LTE | E3: MOBILE HOME | F3: 5019060 | G3: 274500 | H3: NO | I3: YES | J3: 43934
A4: Acme Title and Escrow | B4: ACT | C4: LANDER | D4: LTE | E4: SINGLE FAM RES. | F4: 5024093 | G4: 306500 | H4: NO | I4: YES | J4: 43950
A5: Acme Title and Escrow | B5: ACT | C5: LANDER | D5: LTE | E5: SINGLE FAM RES. | F5: 5017489 | G5: 413000 | H5: NO | I5: YES | J5: 43928
A6: Acme Title and Escrow | B6: ACT | C6: LANDER | D6: LTE | E6: SINGLE FAM RES. | F6: 5021479 | G6: 298000 | H6: NO | I6: YES | J6: 43942
A7: Calatlantic Title West | B7: CAL | C7: MCCARRAN | D7: LH | E7: SINGLE FAM RES. | F7: 5024178 | G7: 580828 | H7: YES | I7: YES | J7: 43950
A8: Calatlantic Title West | B8: CAL | C8: MCCARRAN | D8: LH | E8: SINGLE FAM RES. | F8: 5018650 | G8: 439950 | H8: YES | I8: YES | J8: 43931
A9: Calatlantic Title West | B9: CAL | C9: MCCARRAN | D9: LH | E9: SINGLE FAM RES. | F9: 5024172 | G9: 433525 | H9: YES | I9: YES | J9: 43950
A10: Calatlantic Title West | B10: CAL | C10: MCCARRAN | D10: LH | E10: SINGLE FAM RES. | F10: 5018622 | G10: 439950 | H10: YES | I10: YES | J10: 43931
A11: Calatlantic Title West | B11: CAL | C11: MCCARRAN | D11: LH | E11: SINGLE FAM RES. | F11: 5018599 | G11: 377019 | H11: YES | I11: YES | J11: 43931
A12: Calatlantic Title West | B12: CAL | C12: MCCARRAN | D12: LH | E12: SINGLE FAM RES. | F12: 5016425 | G12: 499841 | H12: YES | I12: YES | J12: 43923
A13: Calatlantic Title West | B13: CAL | C13: MCCARRAN | D13: LH | E13: SINGLE FAM RES. | F13: 5023260 | G13: 408607 | H13: YES | I13: YES | J13: 43948
A14: Calatlantic Title West | B14: CAL | C14: MCCARRAN | D14: LH | E14: SINGLE FAM RES. | F14: 5019411 | G14: 496264 | H14: YES | I14: YES | J14: 43935
A15: Calatlantic Title West | B15: CAL | C15: MCCARRAN | D15: LH | E15: SINGLE FAM RES. | F15: 5019426 | G15: 647804 | H15: YES | I15: YES | J15: 43935
A16: Calatlantic Title West | B16: CAL | C16: MCCARRAN | D16: LH | E16: SINGLE FAM RES. | F16: 5019483 | G16: 406801 | H16: YES | I16: YES | J16: 43935
A17: Calatlantic Title West | B17: CAL | C17: MCCARRAN | D17: LH | E17: SINGLE FAM RES. | F17: 5022595 | G17: 439857 | H17: YES | I17: YES | J17: 43945
A18: Calatlantic Title West | B18: CAL | C18: MCCARRAN | D18: LH | E18: SINGLE FAM RES. | F18: 5022589 | G18: 409395 | H18: YES | I18: YES | J18: 43945
A19: Calatlantic Title West | B19: CAL | C19: MCCARRAN | D19: LH | E19: SINGLE FAM RES. | F19: 5019842 | G19: 413820 | H19: YES | I19: YES | J19: 43936
A20: Calatlantic Title West | B20: CAL | C20: MCCARRAN | D20: LH | E20: SINGLE FAM RES. | F20: 5023319 | G20: 511571 | H20: YES | I20: YES | J20: 43948
A21: Calatlantic Title West | B21: CAL | C21: MCCARRAN | D21: LH | E21: SINGLE FAM RES. | F21: 5021857 | G21: 373126 | H21: YES | I21: YES | J21: 43943
A22: Calatlantic Title West | B22: CAL | C22: MCCARRAN | D22: LH | E22: SINGLE FAM RES. | F22: 5021285 | G22: 399913 | H22: YES | I22: YES | J22: 43942
A23: Calatlantic Title West | B23: CAL | C23: MCCARRAN | D23: LH | E23: SINGLE FAM RES. | F23: 5023724 | G23: 455000 | H23: YES | I23: YES | J23: 43949
A24: Calatlantic Title West | B24: CAL | C24: MCCARRAN | D24: LH | E24: SINGLE FAM RES. | F24: 5021440 | G24: 432999 | H24: YES | I24: YES | J24: 43942
A25: Calatlantic Title West | B25: CAL | C25: MCCARRAN | D25: LH | E25: SINGLE FAM RES. | F25: 5023727 | G25: 420755 | H25: YES | I25: YES | J25: 43949
A26: Calatlantic Title West | B26: CAL | C26: MCCARRAN | D26: LH | E26: SINGLE FAM RES. | F26: 5023745 | G26: 412848 | H26: YES | I26: YES | J26: 43949
A27: Calatlantic Title West | B27: CAL | C27: MCCARRAN | D27: LH | E27: SINGLE FAM RES. | F27: 5020524 | G27: 453195 | H27: YES | I27: YES | J27: 43938
A28: Calatlantic Title West | B28: CAL | C28: MCCARRAN | D28: LH | E28: SINGLE FAM RES. | F28: 5016437 | G28: 501703 | H28: YES | I28: YES | J28: 43923
A29: Calatlantic Title West | B29: CAL | C29: MCCARRAN | D29: LH | E29: SINGLE FAM RES. | F29: 5020484 | G29: 510008 | H29: YES | I29: YES | J29: 43938
A30: Calatlantic Title West | B30: CAL | C30: MCCARRAN | D30: LH | E30: SINGLE FAM RES. | F30: 5018211 | G30: 458000 | H30: YES | I30: YES | J30: 43930
A31: Calatlantic Title West | B31: CAL | C31: MCCARRAN | D31: LH | E31: SINGLE FAM RES. | F31: 5022126 | G31: 329950 | H31: YES | I31: YES | J31: 43944
A32: Calatlantic Title West | B32: CAL | C32: MCCARRAN | D32: LH | E32: SINGLE FAM RES. | F32: 5022132 | G32: 443110 | H32: YES | I32: YES | J32: 43944
A33: Calatlantic Title West | B33: CAL | C33: MCCARRAN | D33: LH | E33: SINGLE FAM RES. | F33: 5022149 | G33: 468705 | H33: YES | I33: YES | J33: 43944
A34: Calatlantic Title West | B34: CAL | C34: MCCARRAN | D34: LH | E34: SINGLE FAM RES. | F34: 5020158 | G34: 455877 | H34: YES | I34: YES | J34: 43937
A35: Calatlantic Title West | B35: CAL | C35: MCCARRAN | D35: LH | E35: SINGLE FAM RES. | F35: 5020143 | G35: 388232 | H35: YES | I35: YES | J35: 43937
A36: Calatlantic Title West | B36: CAL | C36: MCCARRAN | D36: LH | E36: SINGLE FAM RES. | F36: 5019423 | G36: 688712 | H36: YES | I36: YES | J36: 43935
A37: Calatlantic Title West | B37: CAL | C37: MCCARRAN | D37: LH | E37: SINGLE FAM RES. | F37: 5020097 | G37: 398750 | H37: YES | I37: YES | J37: 43937
A38: Calatlantic Title West | B38: CAL | C38: MCCARRAN | D38: LH | E38: SINGLE FAM RES. | F38: 5021840 | G38: 372954 | H38: YES | I38: YES | J38: 43943
A39: Calatlantic Title West | B39: CAL | C39: MCCARRAN | D39: LH | E39: SINGLE FAM RES. | F39: 5024724 | G39: 458195 | H39: YES | I39: YES | J39: 43951
A40: Calatlantic Title West | B40: CAL | C40: MCCARRAN | D40: LH | E40: SINGLE FAM RES. | F40: 5018151 | G40: 349950 | H40: YES | I40: YES | J40: 43930
A41: Calatlantic Title West | B41: CAL | C41: MCCARRAN | D41: LH | E41: SINGLE FAM RES. | F41: 5017377 | G41: 442210 | H41: YES | I41: YES | J41: 43928
A42: Calatlantic Title West | B42: CAL | C42: MCCARRAN | D42: LH | E42: SINGLE FAM RES. | F42: 5024736 | G42: 441251 | H42: YES | I42: YES | J42: 43951
A43: DHI Title of Nevada | B43: DHI | C43: LONGLEY | D43: N/A | E43: SINGLE FAM RES. | F43: 5018486 | G43: 414995 | H43: YES | I43: YES | J43: 43931
A44: DHI Title of Nevada | B44: DHI | C44: LONGLEY | D44: N/A | E44: SINGLE FAM RES. | F44: 5016092 | G44: 367995 | H44: YES | I44: YES | J44: 43922
A45: DHI Title of Nevada | B45: DHI | C45: LONGLEY | D45: N/A | E45: SINGLE FAM RES. | F45: 5022265 | G45: 511995 | H45: YES | I45: YES | J45: 43945
A46: DHI Title of Nevada | B46: DHI | C46: LONGLEY | D46: N/A | E46: SINGLE FAM RES. | F46: 5023483 | G46: 379995 | H46: YES | I46: YES | J46: 43949
A47: First American Title | B47: FA | C47: KIETZKE | D47: TK | E47: CONDO/TWNHSE | F47: 5016648 | G47: 115000 | H47: NO | I47: YES | J47: 43924
A48: First American Title | B48: FA | C48: SPARKS | D48: CY | E48: SINGLE FAM RES. | F48: 5019833 | G48: 388896 | H48: YES | I48: YES | J48: 43936
A49: First American Title | B49: FA | C49: KIETZKE | D49: TK | E49: SINGLE FAM RES. | F49: 5015979 | G49: 352000 | H49: NO | I49: YES | J49: 43922
A50: First American Title | B50: FA | C50: KIETZKE | D50: MH | E50: SINGLE FAM RES. | F50: 5018559 | G50: 586000 | H50: NO | I50: YES | J50: 43931
A51: First American Title | B51: FA | C51: SPARKS | D51: JP | E51: SINGLE FAM RES. | F51: 5024164 | G51: 886383 | H51: YES | I51: YES | J51: 43950
A52: First American Title | B52: FA | C52: INCLINE | D52: VD | E52: SINGLE FAM RES. | F52: 5016638 | G52: 448840 | H52: NO | I52: YES | J52: 43924
A53: First American Title | B53: FA | C53: KIETZKE | D53: TK | E53: SINGLE FAM RES. | F53: 5015989 | G53: 393000 | H53: NO | I53: YES | J53: 43922
A54: First American Title | B54: FA | C54: KIETZKE | D54: MH | E54: SINGLE FAM RES. | F54: 5022631 | G54: 295000 | H54: NO | I54: YES | J54: 43945
A55: First American Title | B55: FA | C55: KIETZKE | D55: MLR | E55: VACANT LAND | F55: 5018953 | G55: 16500 | H55: NO | I55: YES | J55: 43934
A56: First American Title | B56: FA | C56: INCLINE | D56: VD | E56: CONDO/TWNHSE | F56: 5018059 | G56: 599000 | H56: NO | I56: YES | J56: 43930
A57: First American Title | B57: FA | C57: SPARKS | D57: JP | E57: SINGLE FAM RES. | F57: 5018646 | G57: 1000000 | H57: YES | I57: YES | J57: 43931
A58: First American Title | B58: FA | C58: SPARKS | D58: CY | E58: SINGLE FAM RES. | F58: 5016744 | G58: 579900 | H58: NO | I58: YES | J58: 43924
A59: First American Title | B59: FA | C59: SPARKS | D59: CY | E59: SINGLE FAM RES. | F59: 5019402 | G59: 355000 | H59: NO | I59: YES | J59: 43935
A60: First American Title | B60: FA | C60: SPARKS | D60: JP | E60: SINGLE FAM RES. | F60: 5020552 | G60: 340088 | H60: YES | I60: YES | J60: 43938
A61: First American Title | B61: FA | C61: KIETZKE | D61: KS | E61: SINGLE FAM RES. | F61: 5016724 | G61: 255000 | H61: NO | I61: YES | J61: 43924
A62: First American Title | B62: FA | C62: KIETZKE | D62: TK | E62: SINGLE FAM RES. | F62: 5019385 | G62: 375000 | H62: NO | I62: YES | J62: 43935
A63: First American Title | B63: FA | C63: SPARKS | D63: CY | E63: SINGLE FAM RES. | F63: 5019360 | G63: 440000 | H63: NO | I63: YES | J63: 43935
A64: First American Title | B64: FA | C64: KIETZKE | D64: TK | E64: CONDO/TWNHSE | F64: 5019331 | G64: 315000 | H64: NO | I64: YES | J64: 43935
A65: First American Title | B65: FA | C65: KIETZKE | D65: TK | E65: CONDO/TWNHSE | F65: 5016794 | G65: 153000 | H65: NO | I65: YES | J65: 43924
A66: First American Title | B66: FA | C66: KIETZKE | D66: MH | E66: SINGLE FAM RES. | F66: 5019227 | G66: 310000 | H66: NO | I66: YES | J66: 43935
A67: First American Title | B67: FA | C67: INCLINE | D67: VD | E67: CONDO/TWNHSE | F67: 5019556 | G67: 1475000 | H67: NO | I67: YES | J67: 43936
A68: First American Title | B68: FA | C68: SPARKS | D68: CY | E68: SINGLE FAM RES. | F68: 5021213 | G68: 429121 | H68: YES | I68: YES | J68: 43942
A69: First American Title | B69: FA | C69: INCLINE | D69: VD | E69: SINGLE FAM RES. | F69: 5016576 | G69: 850000 | H69: NO | I69: YES | J69: 43924
A70: First American Title | B70: FA | C70: KIETZKE | D70: KS | E70: SINGLE FAM RES. | F70: 5023792 | G70: 405000 | H70: NO | I70: YES | J70: 43949
A71: First American Title | B71: FA | C71: KIETZKE | D71: MLR | E71: COMM'L/IND'L | F71: 5016282 | G71: 900000 | H71: NO | I71: YES | J71: 43923
A72: First American Title | B72: FA | C72: KIETZKE | D72: KS | E72: SINGLE FAM RES. | F72: 5020451 | G72: 275000 | H72: NO | I72: YES | J72: 43938
A73: First American Title | B73: FA | C73: KIETZKE | D73: KS | E73: SINGLE FAM RES. | F73: 5017819 | G73: 260000 | H73: NO | I73: YES | J73: 43929
A74: First American Title | B74: FA | C74: KIETZKE | D74: KS | E74: VACANT LAND | F74: 5019233 | G74: 95000 | H74: NO | I74: YES | J74: 43935
A75: First American Title | B75: FA | C75: SPARKS | D75: CY | E75: SINGLE FAM RES. | F75: 5024064 | G75: 383519 | H75: YES | I75: YES | J75: 43950
A76: First American Title | B76: FA | C76: KIETZKE | D76: TK | E76: SINGLE FAM RES. | F76: 5017229 | G76: 229000 | H76: NO | I76: YES | J76: 43927
A77: First American Title | B77: FA | C77: KIETZKE | D77: TK | E77: SINGLE FAM RES. | F77: 5017033 | G77: 350470 | H77: NO | I77: YES | J77: 43927
A78: First American Title | B78: FA | C78: KIETZKE | D78: MLR | E78: VACANT LAND | F78: 5021011 | G78: 5111493 | H78: NO | I78: YES | J78: 43941
A79: First American Title | B79: FA | C79: KIETZKE | D79: TK | E79: CONDO/TWNHSE | F79: 5021311 | G79: 150000 | H79: NO | I79: YES | J79: 43942
A80: First American Title | B80: FA | C80: KIETZKE | D80: KS | E80: MOBILE HOME | F80: 5022408 | G80: 135000 | H80: NO | I80: YES | J80: 43945
A81: First American Title | B81: FA | C81: SPARKS | D81: JP | E81: SINGLE FAM RES. | F81: 5018343 | G81: 387900 | H81: NO | I81: YES | J81: 43931
A82: First American Title | B82: FA | C82: KIETZKE | D82: TK | E82: SINGLE FAM RES. | F82: 5018406 | G82: 365000 | H82: NO | I82: YES | J82: 43931
A83: First American Title | B83: FA | C83: KIETZKE | D83: TK | E83: SINGLE FAM RES. | F83: 5021443 | G83: 399000 | H83: NO | I83: YES | J83: 43942
A84: First American Title | B84: FA | C84: KIETZKE | D84: KS | E84: 2-4 PLEX | F84: 5021290 | G84: 390000 | H84: NO | I84: YES | J84: 43942
A85: First American Title | B85: FA | C85: SPARKS | D85: CY | E85: SINGLE FAM RES. | F85: 5024380 | G85: 425227 | H85: YES | I85: YES | J85: 43951
A86: First American Title | B86: FA | C86: KIETZKE | D86: MLR | E86: COMM'L/IND'L | F86: 5021070 | G86: 3806465.47 | H86: NO | I86: YES | J86: 43941
A87: First American Title | B87: FA | C87: SPARKS | D87: JP | E87: VACANT LAND | F87: 5018198 | G87: 234900 | H87: NO | I87: YES | J87: 43930
A88: First American Title | B88: FA | C88: KIETZKE | D88: MLR | E88: SINGLE FAM RES. | F88: 5020928 | G88: 569000 | H88: YES | I88: YES | J88: 43941
A89: First American Title | B89: FA | C89: KIETZKE | D89: MH | E89: SINGLE FAM RES. | F89: 5020894 | G89: 479000 | H89: NO | I89: YES | J89: 43941
A90: First American Title | B90: FA | C90: SPARKS | D90: JP | E90: SINGLE FAM RES. | F90: 5016108 | G90: 104580 | H90: NO | I90: YES | J90: 43922
A91: First American Title | B91: FA | C91: SPARKS | D91: CY | E91: SINGLE FAM RES. | F91: 5024615 | G91: 520599 | H91: YES | I91: YES | J91: 43951
A92: First American Title | B92: FA | C92: KIETZKE | D92: TK | E92: SINGLE FAM RES. | F92: 5017369 | G92: 700000 | H92: NO | I92: YES | J92: 43928
A93: First American Title | B93: FA | C93: KIETZKE | D93: TK | E93: CONDO/TWNHSE | F93: 5022310 | G93: 158000 | H93: NO | I93: YES | J93: 43945
A94: First Centennial Title | B94: FC | C94: RIDGEVIEW | D94: 15 | E94: CONDO/TWNHSE | F94: 5017761 | G94: 220100 | H94: NO | I94: YES | J94: 43929
A95: First Centennial Title | B95: FC | C95: RIDGEVIEW | D95: 10 | E95: SINGLE FAM RES. | F95: 5020335 | G95: 475000 | H95: NO | I95: YES | J95: 43938
A96: First Centennial Title | B96: FC | C96: RIDGEVIEW | D96: 10 | E96: SINGLE FAM RES. | F96: 5020145 | G96: 2250000 | H96: NO | I96: YES | J96: 43937
A97: First Centennial Title | B97: FC | C97: DAMONTE | D97: 24 | E97: SINGLE FAM RES. | F97: 5020132 | G97: 640000 | H97: NO | I97: YES | J97: 43937
A98: First Centennial Title | B98: FC | C98: RIDGEVIEW | D98: 11 | E98: SINGLE FAM RES. | F98: 5020129 | G98: 392000 | H98: NO | I98: YES | J98: 43937
A99: First Centennial Title | B99: FC | C99: RIDGEVIEW | D99: 11 | E99: SINGLE FAM RES. | F99: 5020122 | G99: 316000 | H99: NO | I99: YES | J99: 43937
A100: First Centennial Title | B100: FC | C100: RIDGEVIEW | D100: 20 | E100: SINGLE FAM RES. | F100: 5017274 | G100: 233500 | H100: NO | I100: YES | J100: 43927
A101: First Centennial Title | B101: FC | C101: SPARKS | D101: 21 | E101: SINGLE FAM RES. | F101: 5020192 | G101: 436841 | H101: YES | I101: YES | J101: 43937
A102: First Centennial Title | B102: FC | C102: RIDGEVIEW | D102: 15 | E102: SINGLE FAM RES. | F102: 5020274 | G102: 385000 | H102: NO | I102: YES | J102: 43938
A103: First Centennial Title | B103: FC | C103: RIDGEVIEW | D103: 9 | E103: CONDO/TWNHSE | F103: 5017650 | G103: 150000 | H103: NO | I103: YES | J103: 43928
A104: First Centennial Title | B104: FC | C104: DAMONTE | D104: 24 | E104: SINGLE FAM RES. | F104: 5023814 | G104: 339000 | H104: NO | I104: YES | J104: 43949
A105: First Centennial Title | B105: FC | C105: RIDGEVIEW | D105: 11 | E105: CONDO/TWNHSE | F105: 5020268 | G105: 345000 | H105: NO | I105: YES | J105: 43938
A106: First Centennial Title | B106: FC | C106: SPARKS | D106: 21 | E106: SINGLE FAM RES. | F106: 5023810 | G106: 405000 | H106: YES | I106: YES | J106: 43949
A107: First Centennial Title | B107: FC | C107: LAKESIDEMOANA | D107: 12 | E107: SINGLE FAM RES. | F107: 5023800 | G107: 370000 | H107: NO | I107: YES | J107: 43949
A108: First Centennial Title | B108: FC | C108: DAMONTE | D108: 24 | E108: VACANT LAND | F108: 5020318 | G108: 317500 | H108: NO | I108: YES | J108: 43938
A109: First Centennial Title | B109: FC | C109: RIDGEVIEW | D109: 2 | E109: SINGLE FAM RES. | F109: 5020195 | G109: 270000 | H109: NO | I109: YES | J109: 43937
A110: First Centennial Title | B110: FC | C110: SPARKS | D110: 21 | E110: SINGLE FAM RES. | F110: 5023797 | G110: 315000 | H110: NO | I110: YES | J110: 43949
A111: First Centennial Title | B111: FC | C111: RIDGEVIEW | D111: 10 | E111: SINGLE FAM RES. | F111: 5020314 | G111: 550000 | H111: NO | I111: YES | J111: 43938
A112: First Centennial Title | B112: FC | C112: RIDGEVIEW | D112: 11 | E112: SINGLE FAM RES. | F112: 5020278 | G112: 1200000 | H112: NO | I112: YES | J112: 43938
A113: First Centennial Title | B113: FC | C113: LAKESIDE | D113: 5 | E113: SINGLE FAM RES. | F113: 5020151 | G113: 690000 | H113: NO | I113: YES | J113: 43937
A114: First Centennial Title | B114: FC | C114: DAMONTE | D114: 24 | E114: SINGLE FAM RES. | F114: 5023820 | G114: 378000 | H114: NO | I114: YES | J114: 43949
A115: First Centennial Title | B115: FC | C115: LAKESIDEMOANA | D115: 12 | E115: SINGLE FAM RES. | F115: 5020148 | G115: 1040000 | H115: NO | I115: YES | J115: 43937
A116: First Centennial Title | B116: FC | C116: INCLINE | D116: 25 | E116: CONDO/TWNHSE | F116: 5017314 | G116: 850000 | H116: NO | I116: YES | J116: 43928
A117: First Centennial Title | B117: FC | C117: LAKESIDE | D117: 5 | E117: CONDO/TWNHSE | F117: 5020309 | G117: 140000 | H117: NO | I117: YES | J117: 43938
A118: First Centennial Title | B118: FC | C118: RIDGEVIEW | D118: 20 | E118: SINGLE FAM RES. | F118: 5023713 | G118: 1120000 | H118: NO | I118: YES | J118: 43949
A119: First Centennial Title | B119: FC | C119: DAMONTE | D119: 24 | E119: CONDO/TWNHSE | F119: 5020460 | G119: 306000 | H119: NO | I119: YES | J119: 43938
A120: First Centennial Title | B120: FC | C120: RIDGEVIEW | D120: 15 | E120: SINGLE FAM RES. | F120: 5017602 | G120: 524900 | H120: NO | I120: YES | J120: 43928
A121: First Centennial Title | B121: FC | C121: RIDGEVIEW | D121: 11 | E121: CONDO/TWNHSE | F121: 5020841 | G121: 133900 | H121: NO | I121: YES | J121: 43941
A122: First Centennial Title | B122: FC | C122: LAKESIDEMOANA | D122: 12 | E122: SINGLE FAM RES. | F122: 5020892 | G122: 570000 | H122: NO | I122: YES | J122: 43941
A123: First Centennial Title | B123: FC | C123: RIDGEVIEW | D123: 15 | E123: SINGLE FAM RES. | F123: 5020931 | G123: 450225 | H123: NO | I123: YES | J123: 43941
A124: First Centennial Title | B124: FC | C124: RIDGEVIEW | D124: 10 | E124: SINGLE FAM RES. | F124: 5020953 | G124: 365000 | H124: NO | I124: YES | J124: 43941
A125: First Centennial Title | B125: FC | C125: RIDGEVIEW | D125: 10 | E125: SINGLE FAM RES. | F125: 5017453 | G125: 955000 | H125: NO | I125: YES | J125: 43928
A126: First Centennial Title | B126: FC | C126: DAMONTE | D126: 24 | E126: SINGLE FAM RES. | F126: 5020602 | G126: 380000 | H126: NO | I126: YES | J126: 43938
A127: First Centennial Title | B127: FC | C127: DAMONTE | D127: 24 | E127: SINGLE FAM RES. | F127: 5020984 | G127: 550000 | H127: NO | I127: YES | J127: 43941
A128: First Centennial Title | B128: FC | C128: SPARKS | D128: 21 | E128: SINGLE FAM RES. | F128: 5020569 | G128: 289500 | H128: NO | I128: YES | J128: 43938
A129: First Centennial Title | B129: FC | C129: DAMONTE | D129: 24 | E129: CONDO/TWNHSE | F129: 5021031 | G129: 250000 | H129: NO | I129: YES | J129: 43941
A130: First Centennial Title | B130: FC | C130: LAKESIDEMOANA | D130: 12 | E130: SINGLE FAM RES. | F130: 5021037 | G130: 260000 | H130: NO | I130: YES | J130: 43941
A131: First Centennial Title | B131: FC | C131: RIDGEVIEW | D131: 11 | E131: SINGLE FAM RES. | F131: 5017440 | G131: 415000 | H131: NO | I131: YES | J131: 43928
A132: First Centennial Title | B132: FC | C132: LAKESIDE | D132: 5 | E132: SINGLE FAM RES. | F132: 5021061 | G132: 380000 | H132: NO | I132: YES | J132: 43941
A133: First Centennial Title | B133: FC | C133: RIDGEVIEW | D133: 9 | E133: SINGLE FAM RES. | F133: 5021091 | G133: 365000 | H133: NO | I133: YES | J133: 43941
A134: First Centennial Title | B134: FC | C134: LAKESIDEMOANA | D134: 12 | E134: MOBILE HOME | F134: 5021103 | G134: 235000 | H134: NO | I134: YES | J134: 43941
A135: First Centennial Title | B135: FC | C135: RIDGEVIEW | D135: 10 | E135: SINGLE FAM RES. | F135: 5021112 | G135: 380000 | H135: NO | I135: YES | J135: 43941
A136: First Centennial Title | B136: FC | C136: RIDGEVIEW | D136: 9 | E136: SINGLE FAM RES. | F136: 5017446 | G136: 305000 | H136: NO | I136: YES | J136: 43928
A137: First Centennial Title | B137: FC | C137: RIDGEVIEW | D137: 9 | E137: SINGLE FAM RES. | F137: 5017630 | G137: 725000 | H137: NO | I137: YES | J137: 43928
A138: First Centennial Title | B138: FC | C138: SPARKS | D138: 21 | E138: SINGLE FAM RES. | F138: 5020407 | G138: 352000 | H138: NO | I138: YES | J138: 43938
A139: First Centennial Title | B139: FC | C139: DAMONTE | D139: 24 | E139: SINGLE FAM RES. | F139: 5017657 | G139: 490000 | H139: NO | I139: YES | J139: 43928
A140: First Centennial Title | B140: FC | C140: RIDGEVIEW | D140: 20 | E140: SINGLE FAM RES. | F140: 5020411 | G140: 365000 | H140: NO | I140: YES | J140: 43938
A141: First Centennial Title | B141: FC | C141: DAMONTE | D141: 24 | E141: SINGLE FAM RES. | F141: 5020418 | G141: 755000 | H141: NO | I141: YES | J141: 43938
A142: First Centennial Title | B142: FC | C142: RIDGEVIEW | D142: 20 | E142: SINGLE FAM RES. | F142: 5023750 | G142: 340000 | H142: NO | I142: YES | J142: 43949
A143: First Centennial Title | B143: FC | C143: SPARKS | D143: 21 | E143: SINGLE FAM RES. | F143: 5020433 | G143: 535000 | H143: NO | I143: YES | J143: 43938
A144: First Centennial Title | B144: FC | C144: LAKESIDEMOANA | D144: 12 | E144: SINGLE FAM RES. | F144: 5020435 | G144: 710000 | H144: NO | I144: YES | J144: 43938
A145: First Centennial Title | B145: FC | C145: RIDGEVIEW | D145: 20 | E145: COMM'L/IND'L | F145: 5020766 | G145: 368000 | H145: NO | I145: YES | J145: 43941
A146: First Centennial Title | B146: FC | C146: LAKESIDEMOANA | D146: 12 | E146: SINGLE FAM RES. | F146: 5017644 | G146: 292500 | H146: NO | I146: YES | J146: 43928
A147: First Centennial Title | B147: FC | C147: RIDGEVIEW | D147: 9 | E147: SINGLE FAM RES. | F147: 5017659 | G147: 335000 | H147: NO | I147: YES | J147: 43928
A148: First Centennial Title | B148: FC | C148: SPARKS | D148: 21 | E148: SINGLE FAM RES. | F148: 5017609 | G148: 499000 | H148: NO | I148: YES | J148: 43928
A149: First Centennial Title | B149: FC | C149: RIDGEVIEW | D149: 10 | E149: SINGLE FAM RES. | F149: 5020540 | G149: 320000 | H149: NO | I149: YES | J149: 43938
A150: First Centennial Title | B150: FC | C150: RIDGEVIEW | D150: 11 | E150: SINGLE FAM RES. | F150: 5020542 | G150: 425000 | H150: NO | I150: YES | J150: 43938
A151: First Centennial Title | B151: FC | C151: SPARKS | D151: 21 | E151: SINGLE FAM RES. | F151: 5017424 | G151: 493384 | H151: YES | I151: YES | J151: 43928
A152: First Centennial Title | B152: FC | C152: RIDGEVIEW | D152: 9 | E152: VACANT LAND | F152: 5020555 | G152: 290000 | H152: NO | I152: YES | J152: 43938
A153: First Centennial Title | B153: FC | C153: RIDGEVIEW | D153: 15 | E153: SINGLE FAM RES. | F153: 5019805 | G153: 305000 | H153: NO | I153: YES | J153: 43936
A154: First Centennial Title | B154: FC | C154: RIDGEVIEW | D154: 9 | E154: SINGLE FAM RES. | F154: 5020557 | G154: 401000 | H154: NO | I154: YES | J154: 43938
A155: First Centennial Title | B155: FC | C155: LAKESIDEMOANA | D155: 12 | E155: SINGLE FAM RES. | F155: 5020470 | G155: 500000 | H155: NO | I155: YES | J155: 43938
A156: First Centennial Title | B156: FC | C156: LAKESIDE | D156: 5 | E156: SINGLE FAM RES. | F156: 5016813 | G156: 410000 | H156: NO | I156: YES | J156: 43924
A157: First Centennial Title | B157: FC | C157: RIDGEVIEW | D157: 20 | E157: SINGLE FAM RES. | F157: 5017902 | G157: 315000 | H157: NO | I157: YES | J157: 43929
A158: First Centennial Title | B158: FC | C158: RIDGEVIEW | D158: 11 | E158: CONDO/TWNHSE | F158: 5018492 | G158: 400000 | H158: NO | I158: YES | J158: 43931
A159: First Centennial Title | B159: FC | C159: SPARKS | D159: 21 | E159: SINGLE FAM RES. | F159: 5018494 | G159: 703000 | H159: NO | I159: YES | J159: 43931
A160: First Centennial Title | B160: FC | C160: RIDGEVIEW | D160: 9 | E160: SINGLE FAM RES. | F160: 5018497 | G160: 270000 | H160: NO | I160: YES | J160: 43931
A161: First Centennial Title | B161: FC | C161: SPARKS | D161: 21 | E161: SINGLE FAM RES. | F161: 5018505 | G161: 635000 | H161: NO | I161: YES | J161: 43931
A162: First Centennial Title | B162: FC | C162: DAMONTE | D162: 24 | E162: 2-4 PLEX | F162: 5018513 | G162: 150000 | H162: NO | I162: YES | J162: 43931
A163: First Centennial Title | B163: FC | C163: DAMONTE | D163: 24 | E163: SINGLE FAM RES. | F163: 5016818 | G163: 335000 | H163: NO | I163: YES | J163: 43924
A164: First Centennial Title | B164: FC | C164: RIDGEVIEW | D164: 15 | E164: SINGLE FAM RES. | F164: 5016833 | G164: 285000 | H164: NO | I164: YES | J164: 43924
A165: First Centennial Title | B165: FC | C165: RIDGEVIEW | D165: 10 | E165: SINGLE FAM RES. | F165: 5016815 | G165: 439000 | H165: NO | I165: YES | J165: 43924
A166: First Centennial Title | B166: FC | C166: RIDGEVIEW | D166: 11 | E166: SINGLE FAM RES. | F166: 5018462 | G166: 425000 | H166: NO | I166: YES | J166: 43931
A167: First Centennial Title | B167: FC | C167: SPARKS | D167: 21 | E167: SINGLE FAM RES. | F167: 5018615 | G167: 387166 | H167: YES | I167: YES | J167: 43931
A168: First Centennial Title | B168: FC | C168: RIDGEVIEW | D168: 20 | E168: SINGLE FAM RES. | F168: 5018617 | G168: 405500 | H168: NO | I168: YES | J168: 43931
A169: First Centennial Title | B169: FC | C169: DAMONTE | D169: 24 | E169: CONDO/TWNHSE | F169: 5017122 | G169: 205000 | H169: NO | I169: YES | J169: 43927
A170: First Centennial Title | B170: FC | C170: RIDGEVIEW | D170: 20 | E170: CONDO/TWNHSE | F170: 5018113 | G170: 230000 | H170: NO | I170: YES | J170: 43930
A171: First Centennial Title | B171: FC | C171: DAMONTE | D171: 24 | E171: SINGLE FAM RES. | F171: 5018092 | G171: 302500 | H171: NO | I171: YES | J171: 43930
A172: First Centennial Title | B172: FC | C172: RIDGEVIEW | D172: 9 | E172: SINGLE FAM RES. | F172: 5018084 | G172: 319990 | H172: NO | I172: YES | J172: 43930
A173: First Centennial Title | B173: FC | C173: RIDGEVIEW | D173: 10 | E173: SINGLE FAM RES. | F173: 5018671 | G173: 895000 | H173: NO | I173: YES | J173: 43931
A174: First Centennial Title | B174: FC | C174: RIDGEVIEW | D174: 9 | E174: SINGLE FAM RES. | F174: 5018682 | G174: 705000 | H174: NO | I174: YES | J174: 43931
A175: First Centennial Title | B175: FC | C175: RIDGEVIEW | D175: 11 | E175: CONDO/TWNHSE | F175: 5018564 | G175: 335000 | H175: NO | I175: YES | J175: 43931
A176: First Centennial Title | B176: FC | C176: SPARKS | D176: 21 | E176: CONDO/TWNHSE | F176: 5017114 | G176: 360000 | H176: NO | I176: YES | J176: 43927
A177: First Centennial Title | B177: FC | C177: LAKESIDEMOANA | D177: 12 | E177: SINGLE FAM RES. | F177: 5018156 | G177: 755000 | H177: NO | I177: YES | J177: 43930
A178: First Centennial Title | B178: FC | C178: RIDGEVIEW | D178: 15 | E178: SINGLE FAM RES. | F178: 5018165 | G178: 1250000 | H178: NO | I178: YES | J178: 43930
A179: First Centennial Title | B179: FC | C179: LAKESIDEMOANA | D179: 12 | E179: MOBILE HOME | F179: 5018178 | G179: 244900 | H179: NO | I179: YES | J179: 43930
A180: First Centennial Title | B180: FC | C180: RIDGEVIEW | D180: 15 | E180: SINGLE FAM RES. | F180: 5018200 | G180: 359900 | H180: NO | I180: YES | J180: 43930
A181: First Centennial Title | B181: FC | C181: RIDGEVIEW | D181: 9 | E181: VACANT LAND | F181: 5018146 | G181: 600000 | H181: NO | I181: YES | J181: 43930
A182: First Centennial Title | B182: FC | C182: RIDGEVIEW | D182: 10 | E182: SINGLE FAM RES. | F182: 5018213 | G182: 1275000 | H182: NO | I182: YES | J182: 43930
A183: First Centennial Title | B183: FC | C183: LAKESIDEMOANA | D183: 12 | E183: SINGLE FAM RES. | F183: 5018220 | G183: 430000 | H183: NO | I183: YES | J183: 43930
A184: First Centennial Title | B184: FC | C184: LAKESIDE | D184: 5 | E184: SINGLE FAM RES. | F184: 5018489 | G184: 365000 | H184: NO | I184: YES | J184: 43931
A185: First Centennial Title | B185: FC | C185: RIDGEVIEW | D185: 20 | E185: SINGLE FAM RES. | F185: 5018243 | G185: 400677 | H185: YES | I185: YES | J185: 43930
A186: First Centennial Title | B186: FC | C186: RIDGEVIEW | D186: 9 | E186: SINGLE FAM RES. | F186: 5019053 | G186: 305000 | H186: NO | I186: YES | J186: 43934
A187: First Centennial Title | B187: FC | C187: SPARKS | D187: 21 | E187: SINGLE FAM RES. | F187: 5017071 | G187: 365000 | H187: NO | I187: YES | J187: 43927
A188: First Centennial Title | B188: FC | C188: SPARKS | D188: 21 | E188: SINGLE FAM RES. | F188: 5017024 | G188: 467000 | H188: NO | I188: YES | J188: 43927
A189: First Centennial Title | B189: FC | C189: DAMONTE | D189: 24 | E189: CONDO/TWNHSE | F189: 5016844 | G189: 297000 | H189: NO | I189: YES | J189: 43924
A190: First Centennial Title | B190: FC | C190: DAMONTE | D190: 24 | E190: SINGLE FAM RES. | F190: 5018312 | G190: 460000 | H190: NO | I190: YES | J190: 43931
A191: First Centennial Title | B191: FC | C191: LAKESIDEMOANA | D191: 12 | E191: SINGLE FAM RES. | F191: 5018328 | G191: 439000 | H191: NO | I191: YES | J191: 43931
A192: First Centennial Title | B192: FC | C192: DAMONTE | D192: 24 | E192: SINGLE FAM RES. | F192: 5018413 | G192: 415000 | H192: NO | I192: YES | J192: 43931
A193: First Centennial Title | B193: FC | C193: DAMONTE | D193: 24 | E193: SINGLE FAM RES. | F193: 5018431 | G193: 510000 | H193: NO | I193: YES | J193: 43931
A194: First Centennial Title | B194: FC | C194: LAKESIDEMOANA | D194: 12 | E194: 2-4 PLEX | F194: 5016837 | G194: 329000 | H194: NO | I194: YES | J194: 43924
A195: First Centennial Title | B195: FC | C195: RIDGEVIEW | D195: 9 | E195: SINGLE FAM RES. | F195: 5018223 | G195: 435000 | H195: NO | I195: YES | J195: 43930
A196: First Centennial Title | B196: FC | C196: LAKESIDEMOANA | D196: 12 | E196: SINGLE FAM RES. | F196: 5019869 | G196: 594000 | H196: NO | I196: YES | J196: 43936
A197: First Centennial Title | B197: FC | C197: RIDGEVIEW | D197: 10 | E197: CONDO/TWNHSE | F197: 5016705 | G197: 170000 | H197: NO | I197: YES | J197: 43924
A198: First Centennial Title | B198: FC | C198: RIDGEVIEW | D198: 20 | E198: COMM'L/IND'L | F198: 5017217 | G198: 3350000 | H198: NO | I198: YES | J198: 43927
A199: First Centennial Title | B199: FC | C199: RIDGEVIEW | D199: 11 | E199: SINGLE FAM RES. | F199: 5016684 | G199: 437500 | H199: NO | I199: YES | J199: 43924
A200: First Centennial Title | B200: FC | C200: LAKESIDE | D200: 5 | E200: SINGLE FAM RES. | F200: 5019820 | G200: 469900 | H200: NO | I200: YES | J200: 43936
... 528 more rows

Sheet LOANS_LIST (hidden)
A1: FULLNAME | B1: RECBY | C1: TYPELOAN | D1: APN | E1: DOCNUM | F1: AMOUNT | G1: RECDATE | H1: LENDER | L1: 1202
A2: Acme Title and Escrow | B2: ACT | C2: CONVENTIONAL | D2: 027-311-46 | E2: 5023923 | F2: 90000 | G2: 43950 | H2: WELLS FARGO BANK NA NA
A3: Acme Title and Escrow | B3: ACT | C3: CONVENTIONAL | D3: 556-433-01 | E3: 5019781 | F3: 300600 | G3: 43936 | H3: GUILD MORTGAGE COMPANY
A4: Acme Title and Escrow | B4: ACT | C4: CONVENTIONAL | D4: 232-583-02 | E4: 5019802 | F4: 317500 | G4: 43936 | H4: WELLS FARGO BANK NA
A5: Acme Title and Escrow | B5: ACT | C5: CONVENTIONAL | D5: 086-672-19 | E5: 5022883 | F5: 118000 | G5: 43948 | H5: ONETRUST HOME LOANS
A6: Acme Title and Escrow | B6: ACT | C6: CONVENTIONAL | D6: 018-042-01 | E6: 5017202 | F6: 452000 | G6: 43927 | H6: NEW AMERICAN FUNDING
A7: Acme Title and Escrow | B7: ACT | C7: CONVENTIONAL | D7: 084-652-01 | E7: 5019807 | F7: 292200 | G7: 43936 | H7: ONETRUST HOME LOANS
A8: Acme Title and Escrow | B8: ACT | C8: CONVENTIONAL | D8: 200-502-04 | E8: 5018843 | F8: 284000 | G8: 43934 | H8: BAY EQUITY LLC
A9: Acme Title and Escrow | B9: ACT | C9: CONVENTIONAL | D9: 131-031-15 | E9: 5022969 | F9: 320000 | G9: 43948 | H9: BAY EQUITY LLC
A10: Acme Title and Escrow | B10: ACT | C10: CONVENTIONAL | D10: 049-313-26 | E10: 5021663 | F10: 510400 | G10: 43943 | H10: BAY EQUITY LLC
A11: Acme Title and Escrow | B11: ACT | C11: CONVENTIONAL | D11: 554-243-11 | E11: 5021401 | F11: 227250 | G11: 43942 | H11: GREATER NEVADA MORTGAGE
A12: Acme Title and Escrow | B12: ACT | C12: VA | D12: 550-561-19 | E12: 5021360 | F12: 238487 | G12: 43942 | H12: PRIMELENDING
A13: Acme Title and Escrow | B13: ACT | C13: CONVENTIONAL | D13: 532-101-05 | E13: 5018591 | F13: 170000 | G13: 43931 | H13: ONETRUST HOME LOANS
A14: Acme Title and Escrow | B14: ACT | C14: VA | D14: 160-922-19 | E14: 5015993 | F14: 282405 | G14: 43922 | H14: ONETRUST HOME LOANS
A15: Acme Title and Escrow | B15: ACT | C15: CONVENTIONAL | D15: 518-703-06 | E15: 5023943 | F15: 290250 | G15: 43950 | H15: GREATER NEVADA MORTGAGE
A16: Acme Title and Escrow | B16: ACT | C16: CONVENTIONAL | D16: 008-152-28 | E16: 5023925 | F16: 135000 | G16: 43950 | H16: WELLS FARGO BANK NA NA
A17: Acme Title and Escrow | B17: ACT | C17: CONVENTIONAL | D17: 010-251-14 | E17: 5021537 | F17: 290000 | G17: 43943 | H17: BAY EQUITY LLC
A18: Acme Title and Escrow | B18: ACT | C18: CONVENTIONAL | D18: 010-193-08 | E18: 5023892 | F18: 319000 | G18: 43950 | H18: BAY EQUITY LLC
A19: Acme Title and Escrow | B19: ACT | C19: CONVENTIONAL | D19: 550-584-09 | E19: 5018079 | F19: 324000 | G19: 43930 | H19: EVERGREEN MONEYSOURCE MORTGAGE COMPANY
A20: Acme Title and Escrow | B20: ACT | C20: CONVENTIONAL | D20: 003-740-41 | E20: 5023939 | F20: 104000 | G20: 43950 | H20: FINANCE OF AMERICA MORTGAGE LLC
A21: Acme Title and Escrow | B21: ACT | C21: CONVENTIONAL | D21: 568-075-03 | E21: 5021278 | F21: 269850 | G21: 43942 | H21: ONETRUST HOME LOANS
A22: Acme Title and Escrow | B22: ACT | C22: CONVENTIONAL | D22: 234-683-13 | E22: 5021596 | F22: 366000 | G22: 43943 | H22: OMEGA MORTGAGE GROUP
A23: Acme Title and Escrow | B23: ACT | C23: CONVENTIONAL | D23: 030-464-01 | E23: 5018161 | F23: 278100 | G23: 43930 | H23: GUILD MORTGAGE COMPANY
A24: Acme Title and Escrow | B24: ACT | C24: CONVENTIONAL | D24: 141-593-03 | E24: 5021758 | F24: 313000 | G24: 43943 | H24: MUTUAL OF OMAHA MORTGAGE INC
A25: Acme Title and Escrow | B25: ACT | C25: HARD MONEY | D25: 051-084-05 | E25: 5020952 | F25: 74000 | G25: 43941 | H25: ULDRICKS JEFFREY L TR; ULDRICKS MARY L TR; ULDRICKS REVOCABLE TRUST
A26: Acme Title and Escrow | B26: ACT | C26: CONVENTIONAL | D26: 202-111-42 | E26: 5017078 | F26: 105000 | G26: 43927 | H26: BAY EQUITY LLC
A27: Acme Title and Escrow | B27: ACT | C27: CONVENTIONAL | D27: 144-222-11 | E27: 5015983 | F27: 340000 | G27: 43922 | H27: GREATER NEVADA MORTGAGE
A28: Acme Title and Escrow | B28: ACT | C28: CONVENTIONAL | D28: 084-691-02 | E28: 5018786 | F28: 400000 | G28: 43934 | H28: UNITED FEDERAL CREDIT UNION
A29: Acme Title and Escrow | B29: ACT | C29: CONVENTIONAL | D29: 021-412-04 | E29: 5021790 | F29: 264500 | G29: 43943 | H29: PRIMELENDING
A30: Acme Title and Escrow | B30: ACT | C30: CONVENTIONAL | D30: 043-213-07 | E30: 5023896 | F30: 162750 | G30: 43950 | H30: BAY EQUITY LLC
A31: Acme Title and Escrow | B31: ACT | C31: CONVENTIONAL | D31: 030-503-02 | E31: 5023660 | F31: 273000 | G31: 43949 | H31: NEW AMERICAN FUNDING
A32: Acme Title and Escrow | B32: ACT | C32: CONVENTIONAL | D32: 080-764-16 | E32: 5020292 | F32: 196400 | G32: 43938 | H32: UNITED FEDERAL CREDIT UNION
A33: Acme Title and Escrow | B33: ACT | C33: CONVENTIONAL | D33: 514-571-02 | E33: 5024355 | F33: 487000 | G33: 43951 | H33: BAY EQUITY LLC
A34: Acme Title and Escrow | B34: ACT | C34: CONVENTIONAL | D34: 002-092-09 | E34: 5017100 | F34: 292040 | G34: 43927 | H34: GUILD MORTGAGE COMPANY
A35: Acme Title and Escrow | B35: ACT | C35: FHA | D35: 050-405-20 | E35: 5017094 | F35: 323815 | G35: 43927 | H35: MOVEMENT MORTGAGE LLC
A36: Acme Title and Escrow | B36: ACT | C36: CONVENTIONAL | D36: 526-362-03 | E36: 5022848 | F36: 238000 | G36: 43948 | H36: BAY EQUITY LLC
A37: Acme Title and Escrow | B37: ACT | C37: CONVENTIONAL | D37: 514-151-03 | E37: 5023396 | F37: 325000 | G37: 43949 | H37: BAY EQUITY LLC
A38: Acme Title and Escrow | B38: ACT | C38: CONVENTIONAL | D38: 530-674-06 | E38: 5018829 | F38: 200000 | G38: 43934 | H38: BAY EQUITY LLC
A39: Acme Title and Escrow | B39: ACT | C39: CONVENTIONAL | D39: 208-561-22 | E39: 5022397 | F39: 325000 | G39: 43945 | H39: GUILD MORTGAGE COMPANY
A40: Acme Title and Escrow | B40: ACT | C40: CONVENTIONAL | D40: 556-591-31 | E40: 5017730 | F40: 217400 | G40: 43929 | H40: ONETRUST HOME LOANS
A41: Acme Title and Escrow | B41: ACT | C41: CONVENTIONAL | D41: 028-165-04 | E41: 5019528 | F41: 201000 | G41: 43936 | H41: UNITED FEDERAL CREDIT UNION
A42: Acme Title and Escrow | B42: ACT | C42: CONVENTIONAL | D42: 200-121-15 | E42: 5017445 | F42: 241250 | G42: 43928 | H42: GUILD MORTGAGE COMPANY
A43: Acme Title and Escrow | B43: ACT | C43: CONVENTIONAL | D43: 036-124-06 | E43: 5023404 | F43: 204300 | G43: 43949 | H43: EVERGREEN MONEYSOURCE MORTGAGE COMPANY
A44: Acme Title and Escrow | B44: ACT | C44: CONVENTIONAL | D44: 141-461-13 | E44: 5022836 | F44: 327150 | G44: 43948 | H44: ON Q FINANCIAL INC
A45: Acme Title and Escrow | B45: ACT | C45: CONVENTIONAL | D45: 526-652-22 | E45: 5018918 | F45: 334300 | G45: 43934 | H45: PRIMELENDING
A46: Acme Title and Escrow | B46: ACT | C46: CONVENTIONAL | D46: 014-031-18 | E46: 5017764 | F46: 377000 | G46: 43929 | H46: ONETRUST HOME LOANS
A47: Acme Title and Escrow | B47: ACT | C47: CONVENTIONAL | D47: 009-261-21 | E47: 5023009 | F47: 409990 | G47: 43948 | H47: ALL WESTERN MORTGAGE INC
A48: Acme Title and Escrow | B48: ACT | C48: CONVENTIONAL | D48: 083-440-81 | E48: 5020804 | F48: 339000 | G48: 43941 | H48: MUTUAL OF OMAHA MORTGAGE
A49: Acme Title and Escrow | B49: ACT | C49: CONVENTIONAL | D49: 089-452-03 | E49: 5018808 | F49: 294000 | G49: 43934 | H49: UNITED FEDERAL CREDIT UNION
A50: Acme Title and Escrow | B50: ACT | C50: CONVENTIONAL | D50: 532-061-09 | E50: 5024490 | F50: 287700 | G50: 43951 | H50: GUILD MORTGAGE COMPANY
A51: Acme Title and Escrow | B51: ACT | C51: CONVENTIONAL | D51: 009-381-03 | E51: 5017092 | F51: 348000 | G51: 43927 | H51: ONETRUST HOME LOANS
A52: Acme Title and Escrow | B52: ACT | C52: VA | D52: 036-495-22 | E52: 5023658 | F52: 268899 | G52: 43949 | H52: PRIMELENDING
A53: Acme Title and Escrow | B53: ACT | C53: CONVENTIONAL | D53: 556-132-16 | E53: 5017711 | F53: 233000 | G53: 43929 | H53: UNITED FEDERAL CREDIT UNION
A54: First American Title | B54: FA | C54: CONVENTIONAL | D54: 510-522-31 | E54: 5018046 | F54: 258000 | G54: 43930 | H54: WELCOME HOME FUNDING LLC
A55: First American Title | B55: FA | C55: CONVENTIONAL | D55: 002-194-07 | E55: 5024567 | F55: 194500 | G55: 43951 | H55: GREAT BASIN FEDERAL CREDIT UNION
A56: First American Title | B56: FA | C56: CONVENTIONAL | D56: 076-300-85 | E56: 5016960 | F56: 264000 | G56: 43927 | H56: GUILD MORTGAGE COMPANY
A57: First American Title | B57: FA | C57: CONVENTIONAL | D57: 039-583-08 | E57: 5017027 | F57: 406502 | G57: 43927 | H57: SUMMIT FUNDING INC
A58: First American Title | B58: FA | C58: CONVENTIONAL | D58: 516-251-06 | E58: 5017182 | F58: 194000 | G58: 43927 | H58: GREATER NEVADA MORTGAGE
A59: First American Title | B59: FA | C59: CONVENTIONAL | D59: 530-711-06 | E59: 5024124 | F59: 176550 | G59: 43950 | H59: ALL WESTERN MORTGAGE INC
A60: First American Title | B60: FA | C60: CREDIT LINE | D60: 003-720-04 | E60: 5024118 | F60: 25000 | G60: 43950 | H60: AMERICA FIRST FEDERAL CREDIT UNION
A61: First American Title | B61: FA | C61: CONVENTIONAL | D61: 234-693-15 | E61: 5024546 | F61: 295000 | G61: 43951 | H61: WELCOME HOME FUNDING LLC
A62: First American Title | B62: FA | C62: CONVENTIONAL | D62: 543-132-09 | E62: 5017787 | F62: 337500 | G62: 43929 | H62: MOUNTAIN AMERICA FEDERAL CREDIT UNION
A63: First American Title | B63: FA | C63: VA | D63: 165-051-10 | E63: 5017042 | F63: 452600 | G63: 43927 | H63: NEW AMERICAN FUNDING
A64: First American Title | B64: FA | C64: CONVENTIONAL | D64: 522-471-12 | E64: 5017831 | F64: 245000 | G64: 43929 | H64: HOMETOWN LENDERS INC
A65: First American Title | B65: FA | C65: CONVENTIONAL | D65: 510-661-04 | E65: 5017467 | F65: 175150 | G65: 43928 | H65: GUILD MORTGAGE COMPANY
A66: First American Title | B66: FA | C66: CONVENTIONAL | D66: 534-617-13 | E66: 5016958 | F66: 416500 | G66: 43927 | H66: GUILD MORTGAGE COMPANY
A67: First American Title | B67: FA | C67: CONVENTIONAL | D67: 049-502-06 | E67: 5016823 | F67: 440000 | G67: 43924 | H67: UNITED WHOLESALE MORTGAGE
A68: First American Title | B68: FA | C68: VA | D68: 143-012-08 | E68: 5022412 | F68: 435667 | G68: 43945 | H68: CHARTER WEST BANK
A69: First American Title | B69: FA | C69: CONVENTIONAL | D69: 009-683-34 | E69: 5016773 | F69: 230000 | G69: 43924 | H69: ALL WESTERN MORTGAGE INC
A70: First American Title | B70: FA | C70: CONVENTIONAL | D70: 208-531-05 | E70: 5022377 | F70: 280000 | G70: 43945 | H70: ALL WESTERN MORTGAGE INC
A71: First American Title | B71: FA | C71: VA | D71: 089-192-14 | E71: 5022391 | F71: 415000 | G71: 43945 | H71: NEW AMERICAN FUNDING
A72: First American Title | B72: FA | C72: VA | D72: 036-474-13 | E72: 5017057 | F72: 305107 | G72: 43927 | H72: NEW AMERICAN FUNDING
A73: First American Title | B73: FA | C73: CONVENTIONAL | D73: 017-491-02 | E73: 5022316 | F73: 353500 | G73: 43945 | H73: CALIBER HOME LOANS INC
A74: First American Title | B74: FA | C74: CONVENTIONAL | D74: 161-312-18 | E74: 5022474 | F74: 187500 | G74: 43945 | H74: GREATER NEVADA MORTGAGE
A75: First American Title | B75: FA | C75: CONVENTIONAL | D75: 017-042-07 | E75: 5022369 | F75: 405750 | G75: 43945 | H75: CALIBER HOME LOANS INC
A76: First American Title | B76: FA | C76: CONVENTIONAL | D76: 141-512-11 | E76: 5019812 | F76: 180000 | G76: 43936 | H76: ALL WESTERN MORTGAGE INC
A77: First American Title | B77: FA | C77: CONVENTIONAL | D77: 530-674-11 | E77: 5024659 | F77: 304000 | G77: 43951 | H77: NEW AMERICAN FUNDING
A78: First American Title | B78: FA | C78: CONVENTIONAL | D78: 556-261-08 | E78: 5017952 | F78: 246600 | G78: 43929 | H78: NEW AMERICAN FUNDING
A79: First American Title | B79: FA | C79: CONVENTIONAL | D79: 510-634-05 | E79: 5019234 | F79: 191900 | G79: 43935 | H79: GUILD MORTGAGE COMPANY
A80: First American Title | B80: FA | C80: CONVENTIONAL | D80: 232-531-06 | E80: 5019216 | F80: 450000 | G80: 43935 | H80: CALIBER HOME LOANS INC
A81: First American Title | B81: FA | C81: CONVENTIONAL | D81: 028-462-18 | E81: 5019215 | F81: 170000 | G81: 43935 | H81: CALIBER HOME LOANS INC
A82: First American Title | B82: FA | C82: CONVENTIONAL | D82: 534-633-04 | E82: 5022959 | F82: 439000 | G82: 43948 | H82: NEW AMERICAN FUNDING
A83: First American Title | B83: FA | C83: CONVENTIONAL | D83: 030-691-22 | E83: 5022808 | F83: 186000 | G83: 43948 | H83: UNITED FEDERAL CREDIT UNION
A84: First American Title | B84: FA | C84: CONVENTIONAL | D84: 008-051-09 | E84: 5020396 | F84: 75000 | G84: 43938 | H84: NEVADA STATE BANK
A85: First American Title | B85: FA | C85: CONVENTIONAL | D85: 232-733-04 | E85: 5020316 | F85: 323700 | G85: 43938 | H85: AMERICAN PACIFIC MORTGAGE CORPORATION
A86: First American Title | B86: FA | C86: CONVENTIONAL | D86: 534-671-08 | E86: 5020359 | F86: 474400 | G86: 43938 | H86: GUILD MORTGAGE COMPANY
A87: First American Title | B87: FA | C87: CONVENTIONAL | D87: 002-092-27 | E87: 5024085 | F87: 226000 | G87: 43950 | H87: GUILD MORTGAGE COMPANY
A88: First American Title | B88: FA | C88: CONVENTIONAL | D88: 516-531-03 | E88: 5020311 | F88: 254202 | G88: 43938 | H88: GUILD MORTGAGE COMPANY
A89: First American Title | B89: FA | C89: CONVENTIONAL | D89: 526-541-05 | E89: 5019214 | F89: 152000 | G89: 43935 | H89: CALIBER HOME LOANS INC
A90: First American Title | B90: FA | C90: CONVENTIONAL | D90: 001-462-04 | E90: 5022812 | F90: 170100 | G90: 43948 | H90: MASON MCDUFFIE MORTGAGE CORPORATION
A91: First American Title | B91: FA | C91: CONVENTIONAL | D91: 086-303-01 | E91: 5020162 | F91: 349002 | G91: 43937 | H91: GUILD MORTGAGE COMPANY
A92: First American Title | B92: FA | C92: VA | D92: 026-782-27 | E92: 5020137 | F92: 267900 | G92: 43937 | H92: LONE MORTGAGE INC
A93: First American Title | B93: FA | C93: CONVENTIONAL | D93: 402-641-03 | E93: 5020131 | F93: 417000 | G93: 43937 | H93: SIERRA PACIFIC MORTGAGE COMPANY INC
A94: First American Title | B94: FA | C94: CONVENTIONAL | D94: 140-772-15 | E94: 5020070 | F94: 500000 | G94: 43937 | H94: NEW AMERICAN FUNDING
A95: First American Title | B95: FA | C95: CONVENTIONAL | D95: 041-273-04 | E95: 5020014 | F95: 284700 | G95: 43937 | H95: AXIA FINANCIAL LLC
A96: First American Title | B96: FA | C96: CONVENTIONAL | D96: 518-093-08 | E96: 5022358 | F96: 246000 | G96: 43945 | H96: GUILD MORTGAGE COMPANY
A97: First American Title | B97: FA | C97: VA | D97: 530-591-06 | E97: 5022278 | F97: 246050 | G97: 43945 | H97: SUMMIT FUNDING INC
A98: First American Title | B98: FA | C98: HARD MONEY | D98: 013-341-07 | E98: 5015952 | F98: 2000000 | G98: 43922 | H98: RENO NOTEHOLDERS LLC
A99: First American Title | B99: FA | C99: CONVENTIONAL | D99: 026-781-44 | E99: 5023986 | F99: 207000 | G99: 43950 | H99: GUILD MORTGAGE COMPANY
A100: First American Title | B100: FA | C100: VA | D100: 204-692-22 | E100: 5023000 | F100: 409537 | G100: 43948 | H100: ONETRUST HOME LOANS
A101: First American Title | B101: FA | C101: FHA | D101: 081-181-23 | E101: 5022602 | F101: 269757 | G101: 43945 | H101: CARRINGTON MORTGAGE SERVICES LLC
A102: First American Title | B102: FA | C102: CONVENTIONAL | D102: 204-073-07 | E102: 5017374 | F102: 327831 | G102: 43928 | H102: USAA FEDERAL SAVINGS BANK
A103: First American Title | B103: FA | C103: CONVENTIONAL | D103: 082-592-26 | E103: 5022627 | F103: 150000 | G103: 43945 | H103: SUMMIT FUNDING INC
A104: First American Title | B104: FA | C104: CONVENTIONAL | D104: 238-344-28 | E104: 5024011 | F104: 403000 | G104: 43950 | H104: GREATER NEVADA MORTGAGE
A105: First American Title | B105: FA | C105: CONVENTIONAL | D105: 019-061-20 | E105: 5024790 | F105: 328000 | G105: 43951 | H105: HOME POINT FINANCIAL CORPORATION
A106: First American Title | B106: FA | C106: CONVENTIONAL | D106: 204-280-15 | E106: 5024792 | F106: 279000 | G106: 43951 | H106: GUILD MORTGAGE COMPANY
A107: First American Title | B107: FA | C107: CONVENTIONAL | D107: 141-462-15 | E107: 5024789 | F107: 487500 | G107: 43951 | H107: ALL WESTERN MORTGAGE INC
A108: First American Title | B108: FA | C108: CONVENTIONAL | D108: 526-103-11 | E108: 5023944 | F108: 189000 | G108: 43950 | H108: US BANK NA
A109: First American Title | B109: FA | C109: CONVENTIONAL | D109: 025-040-30 | E109: 5024382 | F109: 192384 | G109: 43951 | H109: GUILD MORTGAGE COMPANY
A110: First American Title | B110: FA | C110: FHA | D110: 556-622-25 | E110: 5024601 | F110: 111925 | G110: 43951 | H110: BANK OF THE WEST
A111: First American Title | B111: FA | C111: CONVENTIONAL | D111: 526-112-06 | E111: 5023916 | F111: 372500 | G111: 43950 | H111: CARDINAL FINANCIAL COMPANY LIMITED PARTNERSHIP
A112: First American Title | B112: FA | C112: CONVENTIONAL | D112: 090-226-05 | E112: 5022807 | F112: 276500 | G112: 43948 | H112: BANK OF ENGLAND
A113: First American Title | B113: FA | C113: CONVENTIONAL | D113: 127-120-13 | E113: 5018065 | F113: 250600 | G113: 43930 | H113: NBH BANK
A114: First American Title | B114: FA | C114: CONVENTIONAL | D114: 010-153-14 | E114: 5024787 | F114: 285000 | G114: 43951 | H114: US BANK NA
A115: First American Title | B115: FA | C115: CONVENTIONAL | D115: 160-411-01 | E115: 5022553 | F115: 240000 | G115: 43945 | H115: ALL WESTERN MORTGAGE INC
A116: First American Title | B116: FA | C116: CONVENTIONAL | D116: 534-633-03 | E116: 5023929 | F116: 385000 | G116: 43950 | H116: NEVADA STATE BANK
A117: First American Title | B117: FA | C117: CONVENTIONAL | D117: 510-674-03 | E117: 5024600 | F117: 354200 | G117: 43951 | H117: GUILD MORTGAGE COMPANY
A118: First American Title | B118: FA | C118: CONVENTIONAL | D118: 042-313-12 | E118: 5015937 | F118: 287350 | G118: 43922 | H118: SUMMIT FUNDING INC
A119: First American Title | B119: FA | C119: CONVENTIONAL | D119: 047-121-12 | E119: 5016583 | F119: 510400 | G119: 43924 | H119: MASON MCDUFFIE MORTGAGE CORPORATION
A120: First American Title | B120: FA | C120: FHA | D120: 033-304-01 | E120: 5017342 | F120: 230972 | G120: 43928 | H120: CARDINAL FINANCIAL COMPANY LIMITED PARTNERSHIP
A121: First American Title | B121: FA | C121: CONVENTIONAL | D121: 510-230-07 | E121: 5024269 | F121: 276000 | G121: 43950 | H121: MOUNTAIN AMERICA FEDERAL CREDIT UNION
A122: First American Title | B122: FA | C122: CONVENTIONAL | D122: 514-382-01 | E122: 5017187 | F122: 2979700 | G122: 43927 | H122: NEW AMERICAN FUNDING
A123: First American Title | B123: FA | C123: CONVENTIONAL | D123: 510-554-14 | E123: 5024272 | F123: 142000 | G123: 43950 | H123: FINANCE OF AMERICA MORTGAGE LLC
A124: First American Title | B124: FA | C124: CONVENTIONAL | D124: 089-313-06 | E124: 5017312 | F124: 287000 | G124: 43928 | H124: GREATER NEVADA MORTGAGE
A125: First American Title | B125: FA | C125: FHA | D125: 001-412-28 | E125: 5017159 | F125: 299450 | G125: 43927 | H125: NEW AMERICAN FUNDING
A126: First American Title | B126: FA | C126: CONVENTIONAL | D126: 078-311-14 | E126: 5017158 | F126: 240000 | G126: 43927 | H126: NEW AMERICAN FUNDING
A127: First American Title | B127: FA | C127: CONVENTIONAL | D127: 026-782-11 | E127: 5024292 | F127: 169500 | G127: 43950 | H127: GUILD MORTGAGE COMPANY
A128: First American Title | B128: FA | C128: CONVENTIONAL | D128: 144-231-10 | E128: 5017335 | F128: 424000 | G128: 43928 | H128: MASON MCDUFFIE MORTGAGE CORPORATION
A129: First American Title | B129: FA | C129: VA | D129: 530-792-03 | E129: 5023982 | F129: 153400 | G129: 43950 | H129: GREATER NEVADA MORTGAGE
A130: First American Title | B130: FA | C130: VA | D130: 144-031-05 | E130: 5024162 | F130: 503496 | G130: 43950 | H130: NAVY FEDERAL CREDIT UNION
A131: First American Title | B131: FA | C131: CONVENTIONAL | D131: 001-421-21 | E131: 5017367 | F131: 221000 | G131: 43928 | H131: NEW AMERICAN FUNDING
A132: First American Title | B132: FA | C132: CONVENTIONAL | D132: 001-330-08 | E132: 5024175 | F132: 229187 | G132: 43950 | H132: ALL WESTERN MORTGAGE INC
A133: First American Title | B133: FA | C133: CONVENTIONAL | D133: 003-492-10 | E133: 5017088 | F133: 245000 | G133: 43927 | H133: CARDINAL FINANCIAL COMPANY LIMITED PARTNERSHIP
A134: First American Title | B134: FA | C134: CONVENTIONAL | D134: 164-363-42 | E134: 5024399 | F134: 176000 | G134: 43951 | H134: NEW AMERICAN FUNDING
A135: First American Title | B135: FA | C135: COMMERCIAL | D135: 041-140-22 | E135: 5017372 | F135: 1914387 | G135: 43928 | H135: GREATER NEVADA CREDIT UNION
A136: First American Title | B136: FA | C136: CONVENTIONAL | D136: 234-531-11 | E136: 5024186 | F136: 208000 | G136: 43950 | H136: ALL WESTERN MORTGAGE INC
A137: First American Title | B137: FA | C137: CONVENTIONAL | D137: 023-167-20 | E137: 5024184 | F137: 410000 | G137: 43950 | H137: NEW AMERICAN FUNDING
A138: First American Title | B138: FA | C138: CONVENTIONAL | D138: 402-241-14 | E138: 5024419 | F138: 101000 | G138: 43951 | H138: GUILD MORTGAGE COMPANY
A139: First American Title | B139: FA | C139: CONVENTIONAL | D139: 030-2224-03 | E139: 5017466 | F139: 299700 | G139: 43928 | H139: GUILD MORTGAGE COMPANY
A140: First American Title | B140: FA | C140: FHA | D140: 003-893-13 | E140: 5024096 | F140: 315645 | G140: 43950 | H140: NEW AMERICAN FUNDING
A141: First American Title | B141: FA | C141: CONVENTIONAL | D141: 522-755-09 | E141: 5017154 | F141: 313000 | G141: 43927 | H141: NEW AMERICAN FUNDING
A142: First American Title | B142: FA | C142: CONVENTIONAL | D142: 125-522-22 | E142: 5018803 | F142: 315000 | G142: 43934 | H142: USAA FEDERAL SAVINGS BANK
A143: First American Title | B143: FA | C143: VA | D143: 530-382-02 | E143: 5018087 | F143: 320900 | G143: 43930 | H143: NEW AMERICAN FUNDING
A144: First American Title | B144: FA | C144: CONVENTIONAL | D144: 526-543-01 | E144: 5018313 | F144: 251000 | G144: 43931 | H144: WELLS FARGO BANK NA
A145: First American Title | B145: FA | C145: CONVENTIONAL | D145: 140-772-09 | E145: 5018625 | F145: 390500 | G145: 43931 | H145: NEW AMERICAN FUNDING
A146: First American Title | B146: FA | C146: CONVENTIONAL | D146: 001-185-10 | E146: 5018311 | F146: 230000 | G146: 43931 | H146: WELCOME HOME FUNDING LLC
A147: First American Title | B147: FA | C147: CONVENTIONAL | D147: 087-661-24 | E147: 5023356 | F147: 201600 | G147: 43948 | H147: WESTCOAST MORTGAGE GROUP & REALTY COMPANY
A148: First American Title | B148: FA | C148: FHA | D148: 030-541-49 | E148: 5018299 | F148: 285714 | G148: 43931 | H148: SUMMIT FUNDING INC
A149: First American Title | B149: FA | C149: CONVENTIONAL | D149: 140-822-17 | E149: 5023752 | F149: 332000 | G149: 43949 | H149: UNITED WHOLESALE MORTGAGE
A150: First American Title | B150: FA | C150: VA | D150: 142-493-02 | E150: 5018222 | F150: 354000 | G150: 43930 | H150: USAA FEDERAL SAVINGS BANK
A151: First American Title | B151: FA | C151: CONVENTIONAL | D151: 161-286-06 | E151: 5023340 | F151: 251000 | G151: 43948 | H151: NEW AMERICAN FUNDING
A152: First American Title | B152: FA | C152: CONVENTIONAL | D152: 200-223-06 | E152: 5023888 | F152: 230100 | G152: 43950 | H152: GUARANTEED RATE INC
A153: First American Title | B153: FA | C153: CONVENTIONAL | D153: 510-621-34 | E153: 5018504 | F153: 213000 | G153: 43931 | H153: ALL WESTERN MORTGAGE INC
A154: First American Title | B154: FA | C154: VA | D154: 512-192-12 | E154: 5018086 | F154: 335000 | G154: 43930 | H154: NEW AMERICAN FUNDING
A155: First American Title | B155: FA | C155: CONVENTIONAL | D155: 009-053-04 | E155: 5018819 | F155: 275000 | G155: 43934 | H155: ONETRUST HOME LOANS
A156: First American Title | B156: FA | C156: F | D156: 090-384-02 | E156: 5023692 | F156: 346054 | G156: 43949 | H156: GUILD MORTGAGE COMPANY
A157: First American Title | B157: FA | C157: CONVENTIONAL | D157: 161-361-05 | E157: 5019702 | F157: 466500 | G157: 43936 | H157: WELCOME HOME FUNDING LLC
A158: First American Title | B158: FA | C158: CONVENTIONAL | D158: 017-110-86 | E158: 5018596 | F158: 328850 | G158: 43931 | H158: GUILD MORTGAGE COMPANY
A159: First American Title | B159: FA | C159: CONVENTIONAL | D159: 550-432-25 | E159: 5023479 | F159: 211600 | G159: 43949 | H159: WELLS FARGO BANK NA NA
A160: First American Title | B160: FA | C160: CONVENTIONAL | D160: 532-172-08 | E160: 5018576 | F160: 459000 | G160: 43931 | H160: FINANCE OF AMERICA MORTGAGE LLC
A161: First American Title | B161: FA | C161: CONVENTIONAL | D161: 141-075-13 | E161: 5018845 | F161: 468500 | G161: 43934 | H161: CALIBER HOME LOANS INC
A162: First American Title | B162: FA | C162: CONVENTIONAL | D162: 019-390-11 | E162: 5018848 | F162: 375000 | G162: 43934 | H162: CALIBER HOME LOANS INC
A163: First American Title | B163: FA | C163: CONVENTIONAL | D163: 141-141-04 | E163: 5018153 | F163: 245700 | G163: 43930 | H163: ALL WESTERN MORTGAGE INC
A164: First American Title | B164: FA | C164: CONVENTIONAL | D164: 522-962-03 | E164: 5018502 | F164: 265000 | G164: 43931 | H164: ALL WESTERN MORTGAGE INC
A165: First American Title | B165: FA | C165: CONVENTIONAL | D165: 027-382-02 | E165: 5023565 | F165: 239000 | G165: 43949 | H165: GREATER NEVADA MORTGAGE
A166: First American Title | B166: FA | C166: CONVENTIONAL | D166: 140-862-05 | E166: 5017067 | F166: 455000 | G166: 43927 | H166: NEW AMERICAN FUNDING
A167: First American Title | B167: FA | C167: CONVENTIONAL | D167: 232-573-12 | E167: 5019314 | F167: 336500 | G167: 43935 | H167: WELLS FARGO BANK NA
A168: First American Title | B168: FA | C168: CONVENTIONAL | D168: 040-421-19 | E168: 5018853 | F168: 343000 | G168: 43934 | H168: NEW AMERICAN FUNDING
A169: First American Title | B169: FA | C169: CONVENTIONAL | D169: 208-121-07 | E169: 5018558 | F169: 265000 | G169: 43931 | H169: ALLWESTERN MORTGAGE INC
A170: First American Title | B170: FA | C170: CONVENTIONAL | D170: 152-671-06 | E170: 5018517 | F170: 210000 | G170: 43931 | H170: BOURNS EFCU
A171: First American Title | B171: FA | C171: CREDIT LINE | D171: 514-300-40 | E171: 5023062 | F171: 30000 | G171: 43948 | H171: BANK OF THE WEST
A172: First American Title | B172: FA | C172: CONVENTIONAL | D172: 001-245-02 | E172: 5018904 | F172: 210000 | G172: 43934 | H172: GUILD MORTGAGE COMPANY
A173: First American Title | B173: FA | C173: CONVENTIONAL | D173: 089-243-05 | E173: 5018360 | F173: 275500 | G173: 43931 | H173: CALIBER HOME LOANS INC
A174: First American Title | B174: FA | C174: CONVENTIONAL | D174: 202-192-11 | E174: 5018821 | F174: 251000 | G174: 43934 | H174: WELLS FARGO BANK NA
A175: First American Title | B175: FA | C175: CONVENTIONAL | D175: 027-042-05 | E175: 5018894 | F175: 209000 | G175: 43934 | H175: GREATER NEVADA MORTGAGE
A176: First American Title | B176: FA | C176: CREDIT LINE | D176: 160-771-03 | E176: 5023497 | F176: 87000 | G176: 43949 | H176: BANK OF THE WEST
A177: First American Title | B177: FA | C177: CONVENTIONAL | D177: 124-500-21 | E177: 5018390 | F177: 206500 | G177: 43931 | H177: GUILD MORTGAGE COMPANY
A178: First American Title | B178: FA | C178: CONVENTIONAL | D178: 036-474-11 | E178: 5018933 | F178: 206000 | G178: 43934 | H178: NEVADA STATE BANK
A179: First American Title | B179: FA | C179: CONVENTIONAL | D179: 526-201-07 | E179: 5018949 | F179: 296000 | G179: 43934 | H179: CALIBER HOME LOANS INC
A180: First American Title | B180: FA | C180: CONVENTIONAL | D180: 049-163-07 | E180: 5019032 | F180: 254000 | G180: 43934 | H180: ALL WESTERN MORTGAGE INC
A181: First American Title | B181: FA | C181: CONVENTIONAL | D181: 028-322-09 | E181: 5023893 | F181: 192900 | G181: 43950 | H181: GUILD MORTGAGE COMPANY
A182: First American Title | B182: FA | C182: FHA | D182: 002-082-12 | E182: 5019051 | F182: 333156 | G182: 43934 | H182: NEW AMERICAN FUNDING
A183: First American Title | B183: FA | C183: CONVENTIONAL | D183: 552-082-10 | E183: 5018404 | F183: 203000 | G183: 43931 | H183: HOMEOWNERS FINANCIAL GROUP USA LLC
A184: First American Title | B184: FA | C184: CONVENTIONAL | D184: 510-614-41 | E184: 5023030 | F184: 360000 | G184: 43948 | H184: GREATER NEVADA MORTGAGE
A185: First American Title | B185: FA | C185: VA | D185: 550-311-31 | E185: 5018913 | F185: 270796 | G185: 43934 | H185: SUMMIT FUNDING INC
A186: First American Title | B186: FA | C186: CONVENTIONAL | D186: 017-342-10 | E186: 5021558 | F186: 361000 | G186: 43943 | H186: CALIBER HOME LOANS INC
A187: First American Title | B187: FA | C187: CONVENTIONAL | D187: 165-083-18 | E187: 5021549 | F187: 327000 | G187: 43943 | H187: MOVEMENT MORTGAGE LLC
A188: First American Title | B188: FA | C188: CONVENTIONAL | D188: 152-732-02 | E188: 5021555 | F188: 496000 | G188: 43943 | H188: FIRST CHOICE LOAN SERVICES INC
A189: First American Title | B189: FA | C189: CONVENTIONAL | D189: 234-693-03 | E189: 5021089 | F189: 337915 | G189: 43941 | H189: GUILD MORTGAGE COMPANY
A190: First American Title | B190: FA | C190: COMMERCIAL | D190: 037-020-68 | E190: 5021559 | F190: 50000000 | G190: 43943 | H190: CBRE MULTIFAMILY CAPITAL INC
A191: First American Title | B191: FA | C191: CONVENTIONAL | D191: 050-278-02 | E191: 5020501 | F191: 273210 | G191: 43938 | H191: GUILD MORTGAGE COMPANY
A192: First American Title | B192: FA | C192: CONVENTIONAL | D192: 039-121-42 | E192: 5021568 | F192: 140000 | G192: 43943 | H192: AXIA FINANCIAL LLC
A193: First American Title | B193: FA | C193: CONVENTIONAL | D193: 160-914-17 | E193: 5021650 | F193: 194000 | G193: 43943 | H193: PRIMARY RESIDENTIAL MORTGAGE INC
A194: First American Title | B194: FA | C194: CONVENTIONAL | D194: 152-091-16 | E194: 5019878 | F194: 410500 | G194: 43936 | H194: JMAC LENDING INC
A195: First American Title | B195: FA | C195: CONVENTIONAL | D195: 161-363-19 | E195: 5021677 | F195: 260000 | G195: 43943 | H195: GUILD MORTGAGE COMPANY
A196: First American Title | B196: FA | C196: CONVENTIONAL | D196: 232-554-05 | E196: 5021302 | F196: 280000 | G196: 43942 | H196: NEW AMERICAN FUNDING
A197: First American Title | B197: FA | C197: CONVENTIONAL | D197: 526-221-13 | E197: 5021688 | F197: 243500 | G197: 43943 | H197: GUILD MORTGAGE COMPANY
A198: First American Title | B198: FA | C198: CONVENTIONAL | D198: 532-283-14 | E198: 5021676 | F198: 426400 | G198: 43943 | H198: GUILD MORTGAGE COMPANY
A199: First American Title | B199: FA | C199: CONVENTIONAL | D199: 014-214-07 | E199: 5022970 | F199: 455000 | G199: 43948 | H199: SUMMIT FUNDING INC
A200: First American Title | B200: FA | C200: CONVENTIONAL | D200: 009-192-04 | E200: 5020615 | F200: 160000 | G200: 43938 | H200: PEOPLES MORTGAGE
... 1002 more rows

Sheet SALESLOANSLIST (hidden)
A1: FULLNAME | B1: RECBY | C1: AMOUNT | D1: RECDATE | E1: DOCTYPE | L1: 1930
A2: Acme Title and Escrow | B2: ACT | C2: 232000 | D2: 43934 | E2: DEED
A3: Acme Title and Escrow | B3: ACT | C3: 298000 | D3: 43942 | E3: DEED
A4: Acme Title and Escrow | B4: ACT | C4: 306500 | D4: 43950 | E4: Deed
A5: Acme Title and Escrow | B5: ACT | C5: 413000 | D5: 43928 | E5: DEED
A6: Acme Title and Escrow | B6: ACT | C6: 274500 | D6: 43934 | E6: DEED
A7: Acme Title and Escrow | B7: ACT | C7: 196400 | D7: 43938 | E7: DEED OF TRUST
A8: Acme Title and Escrow | B8: ACT | C8: 377000 | D8: 43929 | E8: DEED OF TRUST
A9: Acme Title and Escrow | B9: ACT | C9: 487000 | D9: 43951 | E9: Deed Of Trust
A10: Acme Title and Escrow | B10: ACT | C10: 269850 | D10: 43942 | E10: DEED OF TRUST
A11: Acme Title and Escrow | B11: ACT | C11: 313000 | D11: 43943 | E11: Deed Of Trust
A12: Acme Title and Escrow | B12: ACT | C12: 118000 | D12: 43948 | E12: Deed Of Trust
A13: Acme Title and Escrow | B13: ACT | C13: 287700 | D13: 43951 | E13: Deed Of Trust
A14: Acme Title and Escrow | B14: ACT | C14: 170000 | D14: 43931 | E14: DEED OF TRUST
A15: Acme Title and Escrow | B15: ACT | C15: 264500 | D15: 43943 | E15: Deed Of Trust
A16: Acme Title and Escrow | B16: ACT | C16: 204300 | D16: 43949 | E16: Deed Of Trust
A17: Acme Title and Escrow | B17: ACT | C17: 217400 | D17: 43929 | E17: DEED OF TRUST
A18: Acme Title and Escrow | B18: ACT | C18: 334300 | D18: 43934 | E18: DEED OF TRUST
A19: Acme Title and Escrow | B19: ACT | C19: 238487 | D19: 43942 | E19: DEED OF TRUST
A20: Acme Title and Escrow | B20: ACT | C20: 325000 | D20: 43949 | E20: Deed Of Trust
A21: Acme Title and Escrow | B21: ACT | C21: 284000 | D21: 43934 | E21: DEED OF TRUST
A22: Acme Title and Escrow | B22: ACT | C22: 327150 | D22: 43948 | E22: Deed Of Trust
A23: Acme Title and Escrow | B23: ACT | C23: 320000 | D23: 43948 | E23: Deed Of Trust
A24: Acme Title and Escrow | B24: ACT | C24: 292200 | D24: 43936 | E24: DEED OF TRUST
A25: Acme Title and Escrow | B25: ACT | C25: 340000 | D25: 43922 | E25: DEED OF TRUST
A26: Acme Title and Escrow | B26: ACT | C26: 227250 | D26: 43942 | E26: DEED OF TRUST
A27: Acme Title and Escrow | B27: ACT | C27: 282405 | D27: 43922 | E27: DEED OF TRUST
A28: Acme Title and Escrow | B28: ACT | C28: 74000 | D28: 43941 | E28: DEED OF TRUST
A29: Acme Title and Escrow | B29: ACT | C29: 238000 | D29: 43948 | E29: Deed Of Trust
A30: Acme Title and Escrow | B30: ACT | C30: 325000 | D30: 43945 | E30: Deed Of Trust
A31: Acme Title and Escrow | B31: ACT | C31: 409990 | D31: 43948 | E31: Deed Of Trust
A32: Acme Title and Escrow | B32: ACT | C32: 339000 | D32: 43941 | E32: DEED OF TRUST
A33: Acme Title and Escrow | B33: ACT | C33: 323815 | D33: 43927 | E33: DEED OF TRUST
A34: Acme Title and Escrow | B34: ACT | C34: 324000 | D34: 43930 | E34: DEED OF TRUST
A35: Acme Title and Escrow | B35: ACT | C35: 290250 | D35: 43950 | E35: Deed Of Trust
A36: Acme Title and Escrow | B36: ACT | C36: 233000 | D36: 43929 | E36: DEED OF TRUST
A37: Acme Title and Escrow | B37: ACT | C37: 104000 | D37: 43950 | E37: Deed Of Trust
A38: Acme Title and Escrow | B38: ACT | C38: 135000 | D38: 43950 | E38: Deed Of Trust
A39: Acme Title and Escrow | B39: ACT | C39: 294000 | D39: 43934 | E39: DEED OF TRUST
A40: Acme Title and Escrow | B40: ACT | C40: 292040 | D40: 43927 | E40: DEED OF TRUST
A41: Acme Title and Escrow | B41: ACT | C41: 510400 | D41: 43943 | E41: Deed Of Trust
A42: Acme Title and Escrow | B42: ACT | C42: 348000 | D42: 43927 | E42: DEED OF TRUST
A43: Acme Title and Escrow | B43: ACT | C43: 105000 | D43: 43927 | E43: DEED OF TRUST
A44: Acme Title and Escrow | B44: ACT | C44: 319000 | D44: 43950 | E44: Deed Of Trust
A45: Acme Title and Escrow | B45: ACT | C45: 90000 | D45: 43950 | E45: Deed Of Trust
A46: Acme Title and Escrow | B46: ACT | C46: 162750 | D46: 43950 | E46: Deed Of Trust
A47: Acme Title and Escrow | B47: ACT | C47: 317500 | D47: 43936 | E47: DEED OF TRUST
A48: Acme Title and Escrow | B48: ACT | C48: 366000 | D48: 43943 | E48: Deed Of Trust
A49: Acme Title and Escrow | B49: ACT | C49: 201000 | D49: 43936 | E49: DEED OF TRUST
A50: Acme Title and Escrow | B50: ACT | C50: 452000 | D50: 43927 | E50: DEED OF TRUST
A51: Acme Title and Escrow | B51: ACT | C51: 200000 | D51: 43934 | E51: DEED OF TRUST
A52: Acme Title and Escrow | B52: ACT | C52: 278100 | D52: 43930 | E52: DEED OF TRUST
A53: Acme Title and Escrow | B53: ACT | C53: 300600 | D53: 43936 | E53: DEED OF TRUST
A54: Acme Title and Escrow | B54: ACT | C54: 273000 | D54: 43949 | E54: Deed Of Trust
A55: Acme Title and Escrow | B55: ACT | C55: 268899 | D55: 43949 | E55: Deed Of Trust
A56: Acme Title and Escrow | B56: ACT | C56: 400000 | D56: 43934 | E56: DEED OF TRUST
A57: Acme Title and Escrow | B57: ACT | C57: 241250 | D57: 43928 | E57: DEED OF TRUST
A58: Acme Title and Escrow | B58: ACT | C58: 290000 | D58: 43943 | E58: Deed Of Trust
A59: Calatlantic Title West | B59: CAL | C59: 439950 | D59: 43931 | E59: DEED
A60: Calatlantic Title West | B60: CAL | C60: 443110 | D60: 43944 | E60: Deed
A61: Calatlantic Title West | B61: CAL | C61: 377019 | D61: 43931 | E61: DEED
A62: Calatlantic Title West | B62: CAL | C62: 455877 | D62: 43937 | E62: DEED
A63: Calatlantic Title West | B63: CAL | C63: 373126 | D63: 43943 | E63: Deed
A64: Calatlantic Title West | B64: CAL | C64: 420755 | D64: 43949 | E64: Deed
A65: Calatlantic Title West | B65: CAL | C65: 399913 | D65: 43942 | E65: DEED
A66: Calatlantic Title West | B66: CAL | C66: 412848 | D66: 43949 | E66: Deed
A67: Calatlantic Title West | B67: CAL | C67: 580828 | D67: 43950 | E67: Deed
A68: Calatlantic Title West | B68: CAL | C68: 433525 | D68: 43950 | E68: Deed
A69: Calatlantic Title West | B69: CAL | C69: 501703 | D69: 43923 | E69: DEED
A70: Calatlantic Title West | B70: CAL | C70: 455000 | D70: 43949 | E70: Deed
A71: Calatlantic Title West | B71: CAL | C71: 458000 | D71: 43930 | E71: DEED
A72: Calatlantic Title West | B72: CAL | C72: 468705 | D72: 43944 | E72: Deed
A73: Calatlantic Title West | B73: CAL | C73: 453195 | D73: 43938 | E73: DEED
A74: Calatlantic Title West | B74: CAL | C74: 413820 | D74: 43936 | E74: DEED
A75: Calatlantic Title West | B75: CAL | C75: 406801 | D75: 43935 | E75: DEED
A76: Calatlantic Title West | B76: CAL | C76: 647804 | D76: 43935 | E76: DEED
A77: Calatlantic Title West | B77: CAL | C77: 688712 | D77: 43935 | E77: DEED
A78: Calatlantic Title West | B78: CAL | C78: 441251 | D78: 43951 | E78: Deed
A79: Calatlantic Title West | B79: CAL | C79: 496264 | D79: 43935 | E79: DEED
A80: Calatlantic Title West | B80: CAL | C80: 510008 | D80: 43938 | E80: DEED
A81: Calatlantic Title West | B81: CAL | C81: 458195 | D81: 43951 | E81: Deed
A82: Calatlantic Title West | B82: CAL | C82: 409395 | D82: 43945 | E82: Deed
A83: Calatlantic Title West | B83: CAL | C83: 499841 | D83: 43923 | E83: DEED
A84: Calatlantic Title West | B84: CAL | C84: 388232 | D84: 43937 | E84: DEED
A85: Calatlantic Title West | B85: CAL | C85: 442210 | D85: 43928 | E85: DEED
A86: Calatlantic Title West | B86: CAL | C86: 372954 | D86: 43943 | E86: Deed
A87: Calatlantic Title West | B87: CAL | C87: 511571 | D87: 43948 | E87: Deed
A88: Calatlantic Title West | B88: CAL | C88: 349950 | D88: 43930 | E88: DEED
A89: Calatlantic Title West | B89: CAL | C89: 439950 | D89: 43931 | E89: DEED
A90: Calatlantic Title West | B90: CAL | C90: 398750 | D90: 43937 | E90: DEED
A91: Calatlantic Title West | B91: CAL | C91: 408607 | D91: 43948 | E91: Deed
A92: Calatlantic Title West | B92: CAL | C92: 329950 | D92: 43944 | E92: Deed
A93: Calatlantic Title West | B93: CAL | C93: 439857 | D93: 43945 | E93: Deed
A94: Calatlantic Title West | B94: CAL | C94: 432999 | D94: 43942 | E94: DEED
A95: DHI Title of Nevada | B95: DHI | C95: 511995 | D95: 43945 | E95: Deed
A96: DHI Title of Nevada | B96: DHI | C96: 414995 | D96: 43931 | E96: DEED
A97: DHI Title of Nevada | B97: DHI | C97: 367995 | D97: 43922 | E97: DEED
A98: DHI Title of Nevada | B98: DHI | C98: 379995 | D98: 43949 | E98: Deed
A99: First American Title | B99: FA | C99: 399000 | D99: 43942 | E99: DEED
A100: First American Title | B100: FA | C100: 599000 | D100: 43930 | E100: DEED
A101: First American Title | B101: FA | C101: 234900 | D101: 43930 | E101: DEED
A102: First American Title | B102: FA | C102: 383519 | D102: 43950 | E102: Deed
A103: First American Title | B103: FA | C103: 850000 | D103: 43924 | E103: DEED
A104: First American Title | B104: FA | C104: 104580 | D104: 43922 | E104: DEED
A105: First American Title | B105: FA | C105: 388896 | D105: 43936 | E105: DEED
A106: First American Title | B106: FA | C106: 1475000 | D106: 43936 | E106: DEED
A107: First American Title | B107: FA | C107: 355000 | D107: 43935 | E107: DEED
A108: First American Title | B108: FA | C108: 375000 | D108: 43935 | E108: DEED
A109: First American Title | B109: FA | C109: 900000 | D109: 43923 | E109: DEED
A110: First American Title | B110: FA | C110: 440000 | D110: 43935 | E110: DEED
A111: First American Title | B111: FA | C111: 315000 | D111: 43935 | E111: DEED
A112: First American Title | B112: FA | C112: 95000 | D112: 43935 | E112: DEED
A113: First American Title | B113: FA | C113: 310000 | D113: 43935 | E113: DEED
A114: First American Title | B114: FA | C114: 352000 | D114: 43922 | E114: DEED
A115: First American Title | B115: FA | C115: 520599 | D115: 43951 | E115: Deed
A116: First American Title | B116: FA | C116: 425227 | D116: 43951 | E116: Deed
A117: First American Title | B117: FA | C117: 393000 | D117: 43922 | E117: DEED
A118: First American Title | B118: FA | C118: 448840 | D118: 43924 | E118: DEED
A119: First American Title | B119: FA | C119: 16500 | D119: 43934 | E119: DEED
A120: First American Title | B120: FA | C120: 1000000 | D120: 43931 | E120: DEED
A121: First American Title | B121: FA | C121: 115000 | D121: 43924 | E121: DEED
A122: First American Title | B122: FA | C122: 586000 | D122: 43931 | E122: DEED
A123: First American Title | B123: FA | C123: 135000 | D123: 43945 | E123: Deed
A124: First American Title | B124: FA | C124: 158000 | D124: 43945 | E124: Deed
A125: First American Title | B125: FA | C125: 365000 | D125: 43931 | E125: DEED
A126: First American Title | B126: FA | C126: 405000 | D126: 43949 | E126: Deed
A127: First American Title | B127: FA | C127: 387900 | D127: 43931 | E127: DEED
A128: First American Title | B128: FA | C128: 295000 | D128: 43945 | E128: Deed
A129: First American Title | B129: FA | C129: 150000 | D129: 43942 | E129: DEED
A130: First American Title | B130: FA | C130: 255000 | D130: 43924 | E130: DEED
A131: First American Title | B131: FA | C131: 260000 | D131: 43929 | E131: DEED
A132: First American Title | B132: FA | C132: 153000 | D132: 43924 | E132: DEED
A133: First American Title | B133: FA | C133: 229000 | D133: 43927 | E133: DEED
A134: First American Title | B134: FA | C134: 479000 | D134: 43941 | E134: DEED
A135: First American Title | B135: FA | C135: 569000 | D135: 43941 | E135: DEED
A136: First American Title | B136: FA | C136: 886383 | D136: 43950 | E136: Deed
A137: First American Title | B137: FA | C137: 275000 | D137: 43938 | E137: DEED
A138: First American Title | B138: FA | C138: 390000 | D138: 43942 | E138: DEED
A139: First American Title | B139: FA | C139: 700000 | D139: 43928 | E139: DEED
A140: First American Title | B140: FA | C140: 5111493 | D140: 43941 | E140: DEED
A141: First American Title | B141: FA | C141: 429121 | D141: 43942 | E141: DEED
A142: First American Title | B142: FA | C142: 3806465.47 | D142: 43941 | E142: DEED
A143: First American Title | B143: FA | C143: 350470 | D143: 43927 | E143: DEED
A144: First American Title | B144: FA | C144: 340088 | D144: 43938 | E144: DEED
A145: First American Title | B145: FA | C145: 579900 | D145: 43924 | E145: DEED
A146: First American Title | B146: FA | C146: 214000 | D146: 43941 | E146: DEED OF TRUST
A147: First American Title | B147: FA | C147: 245000 | D147: 43929 | E147: DEED OF TRUST
A148: First American Title | B148: FA | C148: 293460 | D148: 43948 | E148: Deed Of Trust
A149: First American Title | B149: FA | C149: 287350 | D149: 43922 | E149: DEED OF TRUST
A150: First American Title | B150: FA | C150: 337500 | D150: 43929 | E150: DEED OF TRUST
A151: First American Title | B151: FA | C151: 254000 | D151: 43934 | E151: DEED OF TRUST
A152: First American Title | B152: FA | C152: 101000 | D152: 43951 | E152: Deed Of Trust
A153: First American Title | B153: FA | C153: 409537 | D153: 43948 | E153: Deed Of Trust
A154: First American Title | B154: FA | C154: 254202 | D154: 43938 | E154: DEED OF TRUST
A155: First American Title | B155: FA | C155: 2000000 | D155: 43922 | E155: DEED OF TRUST
A156: First American Title | B156: FA | C156: 323700 | D156: 43938 | E156: DEED OF TRUST
A157: First American Title | B157: FA | C157: 393750 | D157: 43942 | E157: DEED OF TRUST
A158: First American Title | B158: FA | C158: 245000 | D158: 43942 | E158: DEED OF TRUST
A159: First American Title | B159: FA | C159: 251000 | D159: 43948 | E159: Deed Of Trust
A160: First American Title | B160: FA | C160: 201600 | D160: 43948 | E160: Deed Of Trust
A161: First American Title | B161: FA | C161: 187500 | D161: 43945 | E161: Deed Of Trust
A162: First American Title | B162: FA | C162: 4165000 | D162: 43943 | E162: Deed Of Trust
A163: First American Title | B163: FA | C163: 325000 | D163: 43941 | E163: DEED OF TRUST
A164: First American Title | B164: FA | C164: 474400 | D164: 43938 | E164: DEED OF TRUST
A165: First American Title | B165: FA | C165: 211600 | D165: 43949 | E165: Deed Of Trust
A166: First American Title | B166: FA | C166: 455000 | D166: 43948 | E166: Deed Of Trust
A167: First American Title | B167: FA | C167: 176550 | D167: 43950 | E167: Deed Of Trust
A168: First American Title | B168: FA | C168: 258000 | D168: 43930 | E168: DEED OF TRUST
A169: First American Title | B169: FA | C169: 466500 | D169: 43936 | E169: DEED OF TRUST
A170: First American Title | B170: FA | C170: 336500 | D170: 43935 | E170: DEED OF TRUST
A171: First American Title | B171: FA | C171: 284700 | D171: 43937 | E171: DEED OF TRUST
A172: First American Title | B172: FA | C172: 315645 | D172: 43950 | E172: Deed Of Trust
A173: First American Title | B173: FA | C173: 300001 | D173: 43941 | E173: DEED OF TRUST
A174: First American Title | B174: FA | C174: 405750 | D174: 43945 | E174: Deed Of Trust
A175: First American Title | B175: FA | C175: 417000 | D175: 43937 | E175: DEED OF TRUST
A176: First American Title | B176: FA | C176: 360000 | D176: 43948 | E176: Deed Of Trust
A177: First American Title | B177: FA | C177: 267900 | D177: 43937 | E177: DEED OF TRUST
A178: First American Title | B178: FA | C178: 365000 | D178: 43943 | E178: Deed Of Trust
A179: First American Title | B179: FA | C179: 40000 | D179: 43941 | E179: DEED OF TRUST
A180: First American Title | B180: FA | C180: 246600 | D180: 43929 | E180: DEED OF TRUST
A181: First American Title | B181: FA | C181: 435667 | D181: 43945 | E181: Deed Of Trust
A182: First American Title | B182: FA | C182: 403000 | D182: 43950 | E182: Deed Of Trust
A183: First American Title | B183: FA | C183: 333156 | D183: 43934 | E183: DEED OF TRUST
A184: First American Title | B184: FA | C184: 30000 | D184: 43948 | E184: Deed Of Trust
A185: First American Title | B185: FA | C185: 496000 | D185: 43943 | E185: Deed Of Trust
A186: First American Title | B186: FA | C186: 176000 | D186: 43951 | E186: Deed Of Trust
A187: First American Title | B187: FA | C187: 226000 | D187: 43950 | E187: Deed Of Trust
A188: First American Title | B188: FA | C188: 415000 | D188: 43945 | E188: Deed Of Trust
A189: First American Title | B189: FA | C189: 25000 | D189: 43950 | E189: Deed Of Trust
A190: First American Title | B190: FA | C190: 349002 | D190: 43937 | E190: DEED OF TRUST
A191: First American Title | B191: FA | C191: 140000 | D191: 43943 | E191: Deed Of Trust
A192: First American Title | B192: FA | C192: 87000 | D192: 43949 | E192: Deed Of Trust
A193: First American Title | B193: FA | C193: 189000 | D193: 43950 | E193: Deed Of Trust
A194: First American Title | B194: FA | C194: 406502 | D194: 43927 | E194: DEED OF TRUST
A195: First American Title | B195: FA | C195: 299450 | D195: 43927 | E195: DEED OF TRUST
A196: First American Title | B196: FA | C196: 240000 | D196: 43927 | E196: DEED OF TRUST
A197: First American Title | B197: FA | C197: 313000 | D197: 43927 | E197: DEED OF TRUST
A198: First American Title | B198: FA | C198: 452600 | D198: 43927 | E198: DEED OF TRUST
A199: First American Title | B199: FA | C199: 369538 | D199: 43936 | E199: DEED OF TRUST
A200: First American Title | B200: FA | C200: 150000 | D200: 43936 | E200: DEED OF TRUST
... 1730 more rows
